Cogmind - Beta 14 @@@ ROGUE MODE // 2024.10.13 @ 11:11:00 Player: Perseus Result: Establishing 0b11! Performance ------------- Evolutions (9) 4500 Regions Visited (50) 10000 Robots Destroyed (959) 4795 Value Destroyed (44685) 44685 Prototype IDs (333) 6660 Alien Tech Used (16) 3200 Bonus (67964) 67964 TOTAL SCORE: 141804 Bonus ------- Triggered High Security 1000 High Alert Combat Kills 7050 Follower Combat Kills 4383 Entered Garrisons 1600 Aligned with FarCom 300 Met Imprinter 300 Destroyed Z-Imprinter 1000 Acquired ECA 300 Met Zhirov 300 Met Warlord at Base 500 MAIN.C Attacked Warlord 500 Warlord Defense Kills 4878 Met Warlord at Research 2000 Met Sigix 2000 Recovered Sigix Corpse 2000 Destroyed MAIN.C Guards 500 Met MAIN.C 5000 Destroyed MAIN.C Shell 5000 Destroyed MAIN.C 10000 Met Warlord at Command 2000 Met Architect 300 Started Test 138-B 500 Destroyed A8 300 Destroyed A6 400 Destroyed A5 500 Destroyed A4 700 Destroyed A3 800 Destroyed A2 1000 Destroyed Architect 15000 Win 3000 Friendly Fire -5147 Cogmind --------- Core Integrity 1080/1600 Matter 290/300 Energy 197/200 System Corruption 0% Temperature Cool (7) Movement Flying (18) Location 0b11 Command Parts ------- > --- POWER (3) -------- Micro Antimatter Reactor Micro Antimatter Reactor > --- PROPULSION (8) --- Q-thruster Electron Diverter Cooled Impulse Thruster Impulse Thruster Array Improved Q-thruster Cooled Q-thruster Cooled Q-thruster > --- UTILITY (12) ----- Experimental Power Amplifier High-capacity Storage Unit Advanced Quantum Shading Machine Experimental Optical Array Experimental Terrain Scanner Experimental Core Analyzer Femtoactuators Experimental Reaction Control System Experimental Phase Shifter Improved Propulsion Shielding Experimental Weapon Shielding Experimental Thermal Shield > --- WEAPON (3) ------- Plasma Sword Sigix Broadsword > --- INVENTORY (24) --- Compact Particle Reactor Cooled Impulse Thruster Cooled Q-thruster Desublimator Medium Storage Unit Experimental Matter Compressor (500) Advanced Quantum Shading Machine Advanced Launcher Guidance Computer Improved Armor Integrity Analyzer Precision Matter Filter Precision Matter Filter SHELL Armor Deep Network Scanner Quantum Router High-powered Transdimensional Reconstructor A3's Sniper Rifle Z-bomb Delivery System Phasing Sabre Sigix Broadsword Enhanced Force Lance Sigix Corpse Peak State ------------ > --- POWER ------------ Micro Antimatter Reactor Light Quantum Reactor > --- PROPULSION ------- Q-thruster Electron Diverter Cooled Impulse Thruster Impulse Thruster Array Improved Q-thruster Cooled Q-thruster Cooled Q-thruster > --- UTILITY ---------- Medium Storage Unit Advanced Quantum Shading Machine Experimental Optical Array Experimental Core Analyzer Femtoactuators Experimental Reaction Control System Experimental Phase Shifter Improved Propulsion Shielding SHELL Armor Experimental Thermal Shield > --- WEAPON ----------- A3's Sniper Rifle Sigix Broadsword > --- INVENTORY -------- Antimatter Reactor Micro Antimatter Reactor Compact Particle Reactor Cooled Impulse Thruster Cooled Q-thruster Advanced Quantum Shading Machine Experimental Terrain Scanner Experimental Weapon Shielding High-powered Transdimensional Reconstructor Phasing Sabre Plasma Sword Sigix Broadsword Enhanced Force Lance [Rating: 244] Favorites ----------- Power Backup Power VII Engine Light Ion Engine Power Core Backup Power VII Reactor Micro Antimatter Reactor Propulsion Improved VTOL Module Treads Armored Treads Leg Carbon-fiber Leg Wheel Wheel Hover Unit Improved Gyrokinetic Inverter Flight Unit Improved VTOL Module Utility Large Storage Unit Device Experimental Sensor Array Storage Large Storage Unit Processor Advanced Terrain Scan Processor Hackware Advanced System Shield Protection Improved Utility Shielding Artifact Microwarp Drive Weapon Improved Datajack Energy Gun Precision Beam Rifle Energy Cannon Advanced Beam Cannon Ballistic Gun Enhanced Autogun Ballistic Cannon Mass Driver Launcher Smartbomb Launcher Special Weapon Plasma Cutter Impact Weapon Impact Mace Slashing Weapon Sigix Broadsword Piercing Weapon Spear Special Melee Weapon Improved Datajack Build | -11 -10 -10 -10 -9 -8 -8 -8 -8 -8 -8 -8 -8 -8 -8 -8 -8 -8 -8 -6 -6 -6 -6 -6 -6 -6 -5 -5 -5 -5 -5 -5 -5 -4 -4 -4 -4 -4 -4 -4 -3 -3 -3 -3 -2 -2 -2 -2 -1 -1 -1 ------- Run | Yrd Mat Min Exi Min Mat Gar Mat Gar Mat Gar Mat Gar Mat Gar Mat Sto Rec Scr Fac Gar Fac Low Low Zio Dee Pro Fac Was Fac Upp Upp War Pro Fac Was Fac Upp Upp Zhi Pro Res Qua Gar Res Tes Sec Gar Acc Com Ac0 Slots Evolved 18 | . . . . . 4 . . . . . . . . . . . . . 4 . . . . . . . 2 . . . . . . 2 . . . . . . 2 . . 2 . . . 2 . . Power 1 | . . . . . . . . . . . . . . . . . . . 1 . . . . . . . . . . . . . . . . . . . . . . . . . . . . . . . Propulsion 6 | . . . . . 1 . . . . . . . . . . . . . 2 . . . . . . . . . . . . . . 1 . . . . . . 1 . . 1 . . . . . . Utility 10 | . . . . . 3 . . . . . . . . . . . . . 1 . . . . . . . 2 . . . . . . 1 . . . . . . 1 . . 1 . . . 1 . . Weapon 1 | . . . . . . . . . . . . . . . . . . . . . . . . . . . . . . . . . . . . . . . . . . . . . . . . 1 . . Parts Attached 1885 | 7 11 11 5 4 33 13 32 25 31 . 45 11 10 16 35 26 1 4 31 65 92 57 22 16 24 38 76 8 100 13 26 38 47 131 10 18 17 28 16 28 129 69 36 38 47 85 50 41 116 53 Power 117 | 1 1 3 2 . 3 . 3 . 2 . . . . . 1 . . . 3 4 6 5 1 3 2 4 10 4 7 1 4 8 1 5 . 2 . . . . 5 8 1 . . . 1 5 5 6 Engine 36 | 1 1 3 2 . 3 . 3 . 1 . . . . . . . . . 2 2 5 2 1 1 2 . 2 . 1 . 1 . . . . . . . . . 1 2 . . . . . . . . Core 63 | . . . . . . . . . 1 . . . . . 1 . . . 1 . 1 3 . 2 . 4 8 3 6 1 3 8 1 5 . 2 . . . . 4 3 . . . . 1 2 3 . Reactor 18 | . . . . . . . . . . . . . . . . . . . . 2 . . . . . . . 1 . . . . . . . . . . . . . 3 1 . . . . 3 2 6 Propulsion 153 | 2 3 . . 1 9 3 5 2 5 . 4 2 1 . 4 2 . . 3 11 9 7 . . 2 . 3 . 6 . . 1 . 12 6 . . 2 2 . 20 1 . 4 11 . . 3 6 1 Treads 40 | 2 2 . . . 6 3 4 2 5 . 4 2 1 . 3 1 . . 1 2 . 2 . . . . . . . . . . . . . . . . . . . . . . . . . . . . Leg 11 | . . . . . . . . . . . . . . . . . . . . 8 . . . . 1 . . . . . . . . 1 1 . . . . . . . . . . . . . . . Wheel 10 | . 1 . . 1 2 . 1 . . . . . . . . . . . . 1 . 2 . . . . . . . . . . . 1 . . . . . . . . . . . . . . 1 . Hover 10 | . . . . . 1 . . . . . . . . . . . . . . . . . . . . . . . . . . . . . . . . . . . 9 . . . . . . . . . Flight 82 | . . . . . . . . . . . . . . . 1 1 . . 2 . 9 3 . . 1 . 3 . 6 . . 1 . 10 5 . . 2 2 . 11 1 . 4 11 . . 3 5 1 Utility 838 | 2 1 1 1 1 6 4 6 4 8 . 12 1 3 2 8 7 . 3 12 26 43 22 4 9 16 8 32 2 40 3 . 6 10 88 . 9 4 5 7 8 71 51 24 21 23 75 29 26 68 26 Device 605 | 1 . . 1 1 2 . 4 4 7 . 9 1 1 1 6 3 . 2 8 22 25 13 3 6 11 5 24 2 25 3 . 6 10 79 . 9 4 5 5 7 51 34 15 15 14 53 23 21 49 15 Storage 18 | 1 1 . . . . . 1 . . . . . 1 . . . . . . . 1 3 . . 1 . 2 . . . . . . 1 . . . . . . 1 . . . . 1 . . 2 2 Processor 23 | . . . . . 2 . . . . . . . . . . . . . 2 1 3 . . . . 1 2 . 1 . . . . 2 . . . . . . 3 . . . . . . . 4 2 Hackware 25 | . . . . . 1 . . . 1 . . . . 1 . . . 1 . . 1 . . . . . 2 . 8 . . . . 3 . . . . 1 1 2 . . . . . . 1 2 . Protection 161 | . . 1 . . 1 4 1 . . . 3 . 1 . 2 4 . . 2 3 13 6 1 3 4 2 2 . 6 . . . . 3 . . . . 1 . 14 17 9 6 9 16 5 4 11 7 Artifact 6 | . . . . . . . . . . . . . . . . . . . . . . . . . . . . . . . . . . . . . . . . . . . . . . 5 1 . . . Weapon 777 | 2 6 7 2 2 15 6 18 19 16 . 29 8 6 14 22 17 1 1 13 24 34 23 17 4 4 26 31 2 47 9 22 23 36 26 4 7 13 21 7 20 33 9 11 13 13 10 20 7 37 20 Energy Gun 40 | 1 2 1 1 . 5 1 1 9 . . 1 . . . 2 4 . . 1 8 1 . . . . . . . . . . 1 . . . . . . . . . . . . . . . . . 1 Energy Cannon 166 | . . . . . 1 . 8 1 3 . 2 2 3 2 2 2 . . . 4 6 15 9 2 2 13 6 1 9 3 8 2 11 3 . 1 4 2 3 6 11 2 3 2 5 1 1 4 1 . Ballistic Gun 157 | 1 2 2 . 1 7 3 9 6 8 . 15 4 . 8 10 6 . . 8 9 4 . 4 . . . . . 1 1 2 5 12 5 2 1 3 3 . . 4 1 . . 1 . . . 5 4 Ballistic Cannon 50 | . 2 2 . . . . . . 5 . 11 . 2 2 7 3 . 1 4 3 7 . . . . . . . . . . . . . . . . . . . . . . . . . . . . 1 Launcher 98 | . . 2 . 1 2 2 . 3 . . . 2 1 2 . 1 . . . . 4 1 . . . 1 8 . 10 1 3 7 . 3 . 1 1 5 . 5 1 . 5 2 . 4 10 . 8 2 Special Weapon 2 | . . . . . . . . . . . . . . . . 1 . . . . . . . . . . . . . . . 1 . . . . . . . . . . . . . . . . . . Impact Weapon 5 | . . . . . . . . . . . . . . . . . . . . . 3 . . . . . . . . . . . . . . . . . . . 1 1 . . . . . . . . Slashing Weapon 62 | . . . . . . . . . . . . . . . . . . . . . . . . . . . . . . . . . . . . 1 . . 1 1 4 4 3 7 7 5 9 . 9 11 Piercing Weapon 134 | . . . . . . . . . . . . . . . . . . . . . 7 7 4 2 2 12 11 1 17 3 6 3 12 10 2 3 2 5 1 5 9 1 . . . . . 2 6 1 Special Melee Weapon 63 | . . . 1 . . . . . . . . . . . 1 . 1 . . . 2 . . . . . 6 . 10 1 3 4 1 5 . . 3 6 2 3 3 . . 2 . . . 1 8 . Unidentified Prototypes 54 | . . . . . 5 . 1 . 1 . . . . . 2 . . . 1 . 2 . 1 1 4 . 1 1 . . . 7 . . . . . . 4 . . 6 . 1 7 4 . . 1 4 Parts Lost 58 | . 2 . . 1 1 1 . . . . 1 . . . . . . . 2 15 4 1 . . . . 2 . 3 . . 2 . . . . . . . . 13 1 1 . 1 . 1 . . 6 Power 12 | . . . . . . . . . . . . . . . . . . . 1 2 1 . . . . . . . 1 . . 1 . . . . . . . . 2 1 1 . . . . . . 2 Propulsion 24 | . 2 . . 1 1 . . . . . . . . . . . . . . 6 2 1 . . . . . . 2 . . 1 . . . . . . . . 7 . . . . . . . . 1 Utility 14 | . . . . . . 1 . . . . 1 . . . . . . . 1 3 1 . . . . . 1 . . . . . . . . . . . . . 2 . . . . . 1 . . 3 Weapon 8 | . . . . . . . . . . . . . . . . . . . . 4 . . . . . . 1 . . . . . . . . . . . . . 2 . . . 1 . . . . . Highest Loss Streak 13 | . 2 . . 1 1 1 . . . . 1 . . . . . . . 1 13 2 1 . . . . 1 . 1 . . 2 . . . . . . . . 11 1 1 . 1 . 1 . . 3 To Critical Strikes 1 | . 1 . . . . . . . . . . . . . . . . . . . . . . . . . . . . . . . . . . . . . . . . . . . . . . . . . Average Slot Usage (%) 91 | . 99 100 99 100 95 99 99 99 100 100 99 98 89 90 89 90 90 90 81 86 89 93 93 92 92 93 89 93 87 93 87 82 87 93 94 94 94 92 94 89 87 84 85 86 86 86 83 87 88 84 Engine 2 | . 14 14 14 14 9 9 9 9 7 . . . . . . . . . 3 7 7 3 5 5 5 6 1 . . 5 5 . . . . . . . . . 3 . . . . . . . . . Core 7 | . . . . . . . . . 1 9 9 9 9 9 8 9 9 9 5 . . 5 6 5 6 6 10 15 12 10 6 8 11 14 15 15 15 15 15 15 7 9 9 8 8 8 6 6 5 . Treads 8 | . 25 28 28 19 20 27 24 27 27 27 26 25 18 18 17 17 18 18 17 11 . 1 . . . . . . . . . . . . . . . . . . . . . . . . . . . . Flight 15 | . . . . . . . . . . . . . . . . . . . 1 . 29 28 31 31 30 31 22 22 20 22 22 21 22 23 24 25 25 25 25 25 18 22 22 25 25 25 25 25 26 25 Device 13 | . 14 11 2 14 8 2 8 11 9 9 17 18 18 11 16 15 18 18 11 7 11 8 8 11 11 11 16 21 13 16 16 15 16 14 15 15 15 19 19 17 11 9 9 10 10 9 9 11 15 21 Storage 6 | . 14 14 14 14 9 9 9 9 9 9 9 9 9 9 9 9 9 9 6 6 6 5 6 6 6 6 5 5 5 5 5 5 5 5 5 5 5 5 5 5 4 4 4 4 4 4 4 3 3 3 Processor 8 | . . . . . 6 9 9 9 9 9 9 9 9 9 9 9 9 9 13 18 13 13 12 8 6 11 5 5 5 11 11 11 11 5 5 5 5 5 5 5 8 9 9 8 8 8 8 7 10 7 Hackware 7 | . . . . . 8 9 9 6 8 9 . . . 6 9 9 9 9 6 3 1 6 6 6 6 6 10 5 12 5 5 5 5 19 20 20 19 15 15 15 18 18 18 16 16 16 13 14 3 . Protection 4 | . . 2 11 . 8 14 9 9 9 9 8 9 8 9 1 2 . . 1 1 3 3 3 3 6 . 4 5 4 5 5 5 5 . . . . . . . 1 3 3 5 5 5 7 7 9 7 Energy Gun 1 | . 14 13 4 14 5 5 1 5 . . . . . . . 8 9 9 5 6 . . . . . . . . . . . . . . . . . . . . . . . . . . . . . . Energy Cannon 1 | . . . . . . 2 2 . . . . 8 6 1 3 . . . . . . 2 3 . . 2 . . . . . . . . . . . . 1 1 . . . . . . . . . . Ballistic Gun 4 | . 9 7 14 13 10 8 14 12 16 18 16 8 9 14 12 5 8 . 5 3 . . . . . . . . . . . 1 2 . 2 . 2 1 . . . . . . . . . . . . Piercing Weapon 1 | . . . . . . . . . . . . . . . . . . . . . 2 3 1 5 5 3 4 4 4 4 2 1 2 4 2 4 4 1 4 2 2 . . . . . . . . . Special Melee Weapon 2 | . . . 9 . . . . . . . . . . . . . . 7 . . 4 6 6 6 6 6 4 5 4 4 2 2 4 4 5 3 1 3 2 2 1 . . . . . . . 1 . Peak Build Rating 244 | 7 9 17 22 21 35 40 40 44 47 44 47 51 53 51 52 51 50 52 83 88 81 70 68 71 77 73 103 104 110 96 94 104 102 139 141 140 142 146 146 150 172 204 197 214 229 227 231 229 239 244 Average Rating 96 | 5 7 11 14 20 27 37 37 41 44 44 42 42 50 50 49 49 49 50 70 76 65 63 66 65 66 66 86 95 98 92 90 92 95 129 136 137 139 141 142 139 154 184 177 208 214 214 207 219 224 236 On Entrance 93 | . 7 9 13 21 20 35 39 39 44 44 44 42 50 51 51 50 50 47 52 83 76 62 65 66 66 67 70 96 96 92 92 94 99 98 135 135 140 142 142 145 150 167 191 177 208 215 218 219 220 228 Naked Turns . | . . . . . . . . . . . . . . . . . . . . . . . . . . . . . . . . . . . . . . . . . . . . . . . . . . . Heaviest Build 95 | 13 30 43 39 39 53 81 81 60 65 57 64 59 64 63 60 62 40 43 68 64 60 39 33 28 46 34 47 40 47 46 41 40 50 58 51 52 55 55 59 62 68 68 75 70 89 89 93 81 87 95 Greatest Support 165 | 40 40 40 40 40 60 60 60 60 60 60 60 90 90 90 90 90 90 90 165 165 31 26 26 26 26 26 41 40 42 40 40 40 40 52 52 52 52 55 55 52 68 68 68 75 86 86 77 78 87 96 Greatest Overweight (x) 9 | . 2 1 . 1 4 1 5 . 1 . 1 . . . 2 . . . . 9 5 2 1 1 2 1 1 . 1 1 1 . 1 1 1 . 1 1 1 1 1 . 1 . 1 1 1 1 1 1 Average Overweight (x) . | . . . . . . . 1 . . . . . . . . . . . . 1 . . . . . . . . . . . . . . . . . . . . . . . . . . . . . . Largest Inventory Capacity 24 | 8 15 15 15 15 15 15 15 15 15 15 15 15 15 15 15 15 15 15 15 15 15 10 10 10 10 10 15 15 15 15 15 15 15 15 15 15 15 15 15 15 20 20 20 20 20 24 24 24 24 24 Average Capacity 15 | 7 9 15 15 15 15 15 15 15 15 15 15 15 15 15 15 15 15 15 15 15 10 9 10 10 10 10 13 15 15 15 15 15 15 15 15 15 15 15 15 15 18 20 20 20 20 20 24 24 23 19 Most Carried 24 | 5 14 15 15 15 15 15 15 15 15 15 15 15 15 15 15 15 15 15 15 15 15 10 10 10 10 10 15 15 15 15 15 15 15 15 15 15 15 15 15 15 20 20 20 20 20 24 24 24 24 24 Average Carried 14 | 3 8 14 14 14 14 15 14 14 14 15 14 14 14 14 14 14 14 14 14 14 9 9 9 9 9 9 13 14 14 14 14 14 14 14 14 14 14 14 14 14 17 19 19 19 19 18 23 23 20 19 Final Capacity 24 | 8 15 15 15 15 15 15 15 15 15 15 15 15 15 15 15 15 15 15 15 15 10 10 10 10 10 10 15 15 15 15 15 15 15 15 15 15 15 15 15 15 20 20 20 20 20 24 24 24 24 24 Final Carried 24 | 4 13 15 15 14 15 14 15 15 15 15 15 15 15 15 15 15 15 15 15 15 10 10 10 10 10 10 15 15 15 15 15 15 15 15 15 15 15 15 15 15 20 20 20 20 20 24 24 24 24 24 Class Distribution -------------------- 18% | Skirmisher 17% | Mutant 10% | Hacker-Sprinter 7% | Wizard-Sprinter 5% | Scout 5% | Scavenger-Sprinter 4% | Assassin 4% | Scavenger-Mutant 3% | Commander-Scout 3% | Sprinter 3% | Wizard-Scout Dominant Class ---------------- Mutant | -10/Materials Scavenger-Mutant | -10/Mines Scavenger-Mutant | -10/Exiles Mutant | -9/Mines Scavenger-Skirmisher | -8/Materials Mutant | -8/Garrison Skirmisher | -8/Materials Mutant | -8/Garrison Mutant | -8/Materials Mutant | -8/Garrison Skirmisher | -8/Materials Mutant | -8/Garrison Skirmisher | -8/Materials Mutant | -8/Garrison Skirmisher | -8/Materials Skirmisher | -8/Storage Commander-Skirmisher | -8/Recycling Commander-Assassin | -8/Scraptown Commander-Skirmisher | -6/Factory Scavenger-Mutant | -6/Garrison Scout | -6/Factory Mutant | -6/Lower Caves Mutant | -6/Lower Caves Mutant | -6/Zion Assassin | -6/Deep Caves Scout | -5/Proximity Caves Hacker-Scout | -5/Factory Scout | -5/Waste Hacker-Sprinter | -5/Factory Commander-Scout | -5/Upper Caves Commander-Scout | -5/Upper Caves Commander-Scout | -5/Warlord Scout | -4/Proximity Caves Hacker-Sprinter | -4/Factory Hacker-Sprinter | -4/Waste Hacker-Sprinter | -4/Factory Hacker-Sprinter | -4/Upper Caves Hacker-Sprinter | -4/Upper Caves Hacker-Sprinter | -4/Zhirov Hacker-Sprinter | -3/Proximity Caves Wizard-Sprinter | -3/Research Wizard-Sprinter | -3/Quarantine Wizard-Sprinter | -3/Garrison Wizard-Scout | -2/Research Wizard-Scout | -2/Testing Wizard-Sprinter | -2/Section 7 Wizard-Sprinter | -2/Garrison Wizard-Scout | -1/Access Scavenger-Scout | -1/Command Scavenger-Sprinter | -1/Access_0 Resources | -11 -10 -10 -10 -9 -8 -8 -8 -8 -8 -8 -8 -8 -8 -8 -8 -8 -8 -8 -6 -6 -6 -6 -6 -6 -6 -5 -5 -5 -5 -5 -5 -5 -4 -4 -4 -4 -4 -4 -4 -3 -3 -3 -3 -2 -2 -2 -2 -1 -1 -1 ----------- Run | Yrd Mat Min Exi Min Mat Gar Mat Gar Mat Gar Mat Gar Mat Gar Mat Sto Rec Scr Fac Gar Fac Low Low Zio Dee Pro Fac Was Fac Upp Upp War Pro Fac Was Fac Upp Upp Zhi Pro Res Qua Gar Res Tes Sec Gar Acc Com Ac0 Matter Collected 35712 | 280 211 313 . 94 407 433 808 536 942 63 1248 344 734 539 1495 1004 25 50 670 1171 1464 644 458 160 138 507 1046 80 1584 168 670 1061 1176 1587 292 384 674 722 190 855 1731 1385 1059 598 470 1260 885 386 2416 295 Remotely . | . . . . . . . . . . . . . . . . . . . . . . . . . . . . . . . . . . . . . . . . . . . . . . . . . . . Salvage Created 48615 | 143 586 447 . 168 674 511 877 605 917 167 1201 399 793 798 1956 1510 215 . 842 1460 1806 812 706 . 91 692 1309 325 1642 677 646 1140 1254 2265 744 1038 796 469 358 800 1918 1205 927 1317 504 911 678 637 5589 3090 Parts 2065 | 11 40 35 . 15 39 39 42 43 62 2 67 33 40 43 93 82 7 . 35 49 73 32 21 . 6 21 68 1 85 31 21 34 48 86 17 27 28 14 6 34 77 41 37 49 20 44 14 30 166 157 Haulers Intercepted 54 | . 2 . . . 2 . 2 . 2 . 4 . 2 . 2 6 . . 1 . 3 . . . . . 2 . 2 . 1 . . 3 . 5 . . . . 7 1 . 5 1 . . 1 . . Recyclers Shooed 34 | 1 . . . 1 . . 2 . 2 . 1 . 3 . 7 1 5 . . . 3 . . . . . 1 . 2 . . . . 1 . . . . . . 4 . . . . . . . . . Parts Field Recycled . | . . . . . . . . . . . . . . . . . . . . . . . . . . . . . . . . . . . . . . . . . . . . . . . . . . . Retrieved Matter . | . . . . . . . . . . . . . . . . . . . . . . . . . . . . . . . . . . . . . . . . . . . . . . . . . . . Parts Self-Destructed 119 | . . . . . . . . . . . . . . . . . . . . . . 13 11 1 . 5 . . . 7 9 . 31 . . . 9 12 3 18 . . . . . . . . . . Prevented 74 | . . . . . . . . . . . . . . . . . . . . . . 12 11 . . 11 . . . 4 9 . 13 . . . 2 6 . 6 . . . . . . . . . . Kills | -11 -10 -10 -10 -9 -8 -8 -8 -8 -8 -8 -8 -8 -8 -8 -8 -8 -8 -8 -6 -6 -6 -6 -6 -6 -6 -5 -5 -5 -5 -5 -5 -5 -4 -4 -4 -4 -4 -4 -4 -3 -3 -3 -3 -2 -2 -2 -2 -1 -1 -1 ------- Run | Yrd Mat Min Exi Min Mat Gar Mat Gar Mat Gar Mat Gar Mat Gar Mat Sto Rec Scr Fac Gar Fac Low Low Zio Dee Pro Fac Was Fac Upp Upp War Pro Fac Was Fac Upp Upp Zhi Pro Res Qua Gar Res Tes Sec Gar Acc Com Ac0 Combat Hostiles Destroyed 637 | . 15 15 . 6 8 18 9 22 13 2 9 13 5 19 16 16 1 . 13 20 12 10 9 . 1 12 13 . 21 6 11 44 18 12 . 9 8 14 . 27 7 2 30 5 . 18 22 3 60 43 Melee 67 | . . . . . . . . . . . . . . . . . . . . . 2 . . . 1 . 1 . 1 . . . 1 1 . . . . . . 3 2 3 2 . 1 6 3 5 35 Guns 195 | . 13 8 . 2 8 6 9 13 13 2 6 4 1 11 15 15 1 . 13 17 1 . 2 . . . . . 1 . 4 3 17 1 . . 5 1 . . . . . . . . . . 3 . Cannons 36 | . 2 2 . . . 3 . . . . 2 1 2 . 1 . . . . 3 1 7 5 . . 4 . . . . 1 . . . . . 1 . . 1 . . . . . . . . . . AOE 325 | . . 5 . 4 . 9 . 9 . . 1 8 2 8 . . . . . . 8 1 . . . 5 11 . 19 5 6 41 . 10 . 9 2 12 . 23 4 . 27 3 . 17 16 . 52 8 Classes Destroyed 27 | 2 6 2 . . 1 1 . 1 . . . 2 . . . 1 . . . . 2 3 1 . . . 1 . 1 . . . 2 . . . . . . . . . . . . . . . 1 . Worker 54 | . 2 . . . 1 . 2 . . . 1 . . . 3 4 . . 1 . 6 . . . . . 8 . 3 . . . . 1 . 4 . . . . 2 3 . . 1 1 . 1 10 . Builder 29 | . . 1 . 2 1 . 1 . . . 2 . . . 1 . . . . . 4 . . . . . 5 . 5 . . . . 2 . 1 . . . . 1 3 . . . . . . . . Tunneler 17 | 3 . 1 . 1 . . . . . . . . . . . . . . . . 2 . . . . . 1 . 2 . . . . . . 1 . . . . 3 . . . . . . 3 . . Hauler 54 | . 2 . . . 2 . 2 . 2 . 4 . 2 . 2 6 . . 1 . 3 . . . . . 2 . 2 . 1 . . 3 . 5 . . . . 7 1 . 5 1 . . 1 . . Recycler 76 | 1 . . . . 1 . 4 . 1 . 5 . 5 . 8 1 2 . . . 6 . . . . . 2 . 5 . . . . 11 . 1 . . . . 5 5 . 4 2 2 . 1 4 . Carrier 1 | . . . . . . . . . . . . . . . . . . . . . . . . . . . 1 . . . . . . . . . . . . . . . . . . . . . . . Minesweeper 6 | . . . . . . . . . . . . . . . . . . . . . . 1 1 . . 2 . . . 1 . . . . . . . . . 1 . . . . . . . . . . Mechanic 8 | . . . . . . . . . . . . . . . . 1 . . . . 2 . . . . . 3 . . . . . . . . 1 . . . . . . . . . . . . 1 . Operator 9 | . 2 . . . . . . . . . . . . . . 1 . . . . 1 . . . . . . . 1 . . . . . . . . . . . . . 1 . 1 . . 1 1 . Drone 2 | . . . . . . . . . . . . . . . . . . . . . . . . . . . . . . . . . 1 . . . . . . 1 . . . . . . . . . . Watcher 69 | . 1 . . . 1 . 1 . 3 . 5 . 4 . 5 2 . . 1 . 6 . . . . . 6 . 6 . . . . 7 . . . . . . 6 2 . 2 2 5 . 1 3 . Swarmer 150 | . 6 6 . 4 . 10 2 11 2 . 2 6 2 3 . . . . 2 . 3 2 . . . 5 . . 2 5 4 1 3 8 . . 2 5 . 8 4 . 9 3 . 17 5 . 8 . Saboteur 5 | . . . . . . . . . . . . . . . . . . . . . 1 . . . . . . . . . . 4 . . . . . . . . . . . . . . . . . . Grunt 234 | . 9 8 . 2 4 2 3 7 5 3 5 3 . 8 12 11 . . 7 17 5 5 8 . . 7 8 . 6 . 5 21 7 . . 7 1 6 . 9 . 1 14 2 . . 4 3 9 . Brawler 33 | . . . . . 1 2 1 1 1 . 1 . . 5 . . . . . 1 1 1 . . . . 2 . 2 . . 3 2 . . . 1 1 . 1 . . . . . . 2 . 4 . Duelist 13 | . . . . . . 1 . 1 . . . . . 1 1 1 . . . . . . . . . . . . 1 . . 1 1 . . 2 . . . . . . . . . . . . 3 . Protector 6 | . . . . . . . . . . . . . . . . . . . . . . . . . . . . . 1 . . 3 . . . . . . . . . . . . . . . . 2 . Sentry 41 | . . 1 . . 3 3 3 . 5 . 1 3 . . 3 4 1 . 1 1 . 1 1 . . . . . . 1 . . 2 . . . 2 . . 2 . . 1 . . 1 1 . . . Demolisher 2 | . . . . . . . . . . . . 1 . . . . . . . . . . . . . . . . . . . 1 . . . . . . . . . . . . . . . . . . Specialist 6 | . . . . . . . . . . . . 1 . . . . . . . . . . . . . . . . . . . 1 . . . . . . . . . . . . . . . . 4 . Hunter 39 | . . . . . . . . 2 . . . . 3 2 . . . . 3 1 . . . . . . 1 . 1 . 2 2 . 2 . . 2 . . 6 . . 2 . . . 4 . 6 . Programmer 43 | . . . . . . . . . . . . . . . . . . . . . 2 . . . . . 2 . 8 . . 7 1 2 . . . . . . 3 1 3 . . . 3 . 11 . Behemoth 6 | . . . . . . . . . . . . . . . . . . . . . . . . . . . . . . . . . 1 . . . . 1 . . . . 1 . . . 3 . . . Enhanced Grunt 29 | . . . . . . . . . . . . . . . . . . . . . . . . . . . . . . . . . . . . . . . . . . . . . . . . . . 29 Enhanced Sentry 2 | . . . . . . . . . . . . . . . . . . . . . . . . . . . . . . . . . . . . . . . . . . . . . . . . . . 2 Enhanced Hunter 7 | . . . . . . . . . . . . . . . . . . . . . . . . . . . . . . . . . . . . . . . . . . . . . . . . . . 7 Z-Technician 5 | . . . . . . . . . . . . . . . . . . . . . . . . . 5 . . . . . . . . . . . . . . . . . . . . . . . . . Decomposer 8 | . . . . . . . . . . . . . . . . . . . . . . . . . . . . . . 3 5 . . . . . . . . . . . . . . . . . . . Samaritan 22 | . . . . . . . . . . . . . . . . . . . . . . 5 1 . . . . . . 8 . . . . . . 4 3 . 1 . . . . . . . . . . Thief 1 | . . . . . . . . . . . . . . . . . . . . . . 1 . . . . . . . . . . . . . . . . . . . . . . . . . . . . Master Thief 1 | . . . . . . . . . . . . . . . . . . . . . . . . . . . . . . . . . . . . . . 1 . . . . . . . . . . . . Surgeon 4 | . . . . . . . . . . . . . . . . . . . . . . . . . . . . . . . . 1 . . . . . . . . . . . . . . . . 3 . Thug 2 | . . . . . . . . . . . . . . . . . . . . . . . . . . . . . . . . . . . . . . . . . . . . . . . . . 2 . Butcher 4 | . . . . . . . . . . . . . . . . . . . . . . . . . . . . . . . . . . . . . . . . . . . . . . . . . 4 . Wizard 1 | . . . . . . . . . . . . . . . . . . . . . . . . . . . . . . . . . . . . . . . . . . . . . . . . . 1 . Mutant 6 | . . . . . . . . . . . . . . . . . . . . . . . 1 . . . . . . . . 1 . . . . . . . . . . . . . . . . 4 . Troll 2 | . . . . . . . . . . . . . . . . . . . . . . . . . . . . . . . . . . . . . . . . . . . . . . . . . 2 . Best Kill Streak 33 | 4 3 3 . 4 5 7 3 4 4 2 2 4 3 5 3 4 1 . 5 4 5 3 2 . 3 5 7 . 7 5 4 13 3 5 . 22 2 5 1 6 4 4 16 8 2 5 5 3 33 8 Combat Bots Only 32 | . 3 3 . 4 4 7 2 4 3 2 2 4 2 5 3 3 1 . 4 4 2 2 2 . 1 5 6 . 3 5 4 13 3 5 . 9 2 5 . 6 4 1 16 3 . 5 5 2 32 8 Max Kills in Single Turn 10 | 1 2 2 . 3 1 3 1 2 1 1 1 3 1 3 1 2 1 . 1 1 4 1 1 . 1 5 4 . 2 5 3 10 2 5 . 5 1 3 1 3 3 1 4 3 1 4 4 1 4 8 Gunslinging . | . . . . . . . . . . . . . . . . . . . . . . . . . . . . . . . . . . . . . . . . . . . . . . . . . . . Exploded 10 | . . 2 . 3 . 3 . 2 . . 1 3 1 3 . . . . . . 1 1 . . . 5 2 . 2 5 3 10 . 5 . 2 1 3 . 3 3 . 4 3 . 4 4 . 4 8 Melee 1 | . . . . . . . . . . . . . . . . . . . . . 1 . . . 1 . 1 . 1 . . . 1 1 . . . . . . 1 1 1 1 . 1 1 1 1 1 Uniques/NPCs Destroyed 7 | . . . . . . . . . . . . . . . . . . . . . . . . . 1 . . . . . . . . . . . . . 1 . . . . . . . . . . 5 Z-Imprinter (-6/Deep Caves) Zhirov (-4/Zhirov) A2 (-1/Access_0) A6 (-1/Access_0) Architect (-1/Access_0) A4 (-1/Access_0) A3 (-1/Access_0) Combat | -11 -10 -10 -10 -9 -8 -8 -8 -8 -8 -8 -8 -8 -8 -8 -8 -8 -8 -8 -6 -6 -6 -6 -6 -6 -6 -5 -5 -5 -5 -5 -5 -5 -4 -4 -4 -4 -4 -4 -4 -3 -3 -3 -3 -2 -2 -2 -2 -1 -1 -1 -------- Run | Yrd Mat Min Exi Min Mat Gar Mat Gar Mat Gar Mat Gar Mat Gar Mat Sto Rec Scr Fac Gar Fac Low Low Zio Dee Pro Fac Was Fac Upp Upp War Pro Fac Was Fac Upp Upp Zhi Pro Res Qua Gar Res Tes Sec Gar Acc Com Ac0 Hostile Shots Fired 1850 | . 81 63 . 19 31 44 28 48 40 3 36 25 14 28 36 41 . . 176 207 85 8 . . 1 2 8 . 38 . . 20 2 8 . 4 . 23 . 3 125 9 22 . . 16 40 6 77 433 Missed 783 | . 23 17 . 4 8 13 10 15 10 1 8 6 3 5 2 4 . . 35 66 35 2 . . . . 4 . 18 . . 10 1 3 . 3 . 18 . 2 58 2 9 . . 7 17 3 51 310 Damage Taken 18505 | . 583 555 . 165 347 340 227 339 331 26 330 350 102 339 465 429 . . 1655 1963 710 107 . . 14 27 267 . 402 . 34 442 12 83 . 19 . 67 80 24 1232 123 184 71 . 272 784 72 757 4176 Core 2547 | . 149 77 . 10 48 52 37 29 10 . 31 51 24 4 52 67 . . 175 155 105 32 . . . 13 68 . 108 . . 178 . . . . . 17 . . 244 . . . . 272 190 19 23 307 Absorbed by Shields 700 | . . . . . . 21 . . . . . . . 49 170 164 . . 228 . 15 . . . . . . . . . 34 19 . . . . . . . . . . . . . . . . . . Reduced by Siege Mode 284 | . . . . . . . . . . . . . 2 13 51 33 . . 97 88 . . . . . . . . . . . . . . . . . . . . . . . . . . . . . . Redirected to Shielding 954 | . . . . . . . . . . . . . . . . . . . . . 32 . . . 9 . . . 24 . . 21 7 . . . . . . . 29 29 16 . . . 168 34 149 436 Ignored by Resistances 1126 | . . . . . . 25 31 153 111 7 99 38 49 53 . . . . 390 26 30 . . . . . . . . . . . . . . . . . . . . . . . . . . . . 114 Regen/Repaired (Parts) 6076 | . . . . . . . . . 11 . . . 76 . 725 129 . . . . 70 . . 15 . . 104 . 204 . . 21 . 117 13 . . . . . 20 113 47 71 15 . 747 203 583 2792 Core Remaining (%) 59 | 100 . . . 5 . . . . . . . . . . . . . 26 . . . . . . . 43 . . . . . . 64 . . . . . . 90 . . 74 . . . 68 . . 67 Volleys Fired 2865 | 10 79 42 . 15 45 83 88 74 90 10 120 59 112 59 173 142 13 . 67 164 89 96 92 2 7 62 31 7 55 11 83 74 155 28 32 15 86 47 7 71 59 2 53 5 10 12 66 7 149 7 Largest 2 | 2 2 2 . 2 2 2 2 2 2 2 2 2 2 2 2 2 2 . 2 2 2 1 1 1 1 1 1 1 1 1 1 1 1 1 1 1 1 1 1 1 1 1 1 1 1 1 1 1 1 1 Hottest 143 | 60 91 91 . 79 88 85 80 80 106 60 116 104 116 93 125 118 96 . 86 143 132 81 81 105 81 81 81 35 81 81 81 105 105 105 40 105 105 105 105 105 113 40 113 113 113 113 113 113 113 30 Shots Fired 3637 | 20 155 76 . 27 84 108 149 110 145 12 181 76 163 91 245 196 14 . 124 236 95 97 92 2 7 62 31 7 55 11 83 73 155 28 32 15 86 47 7 71 59 2 52 5 10 12 66 7 149 7 Gun 2350 | 20 141 56 . 25 83 74 126 102 126 12 149 38 92 67 191 171 14 . 114 189 53 . 38 . . . . . 9 3 55 38 133 13 32 2 68 23 . . 31 2 . . . . . . 54 6 Cannon 863 | . 14 13 . . 1 29 23 2 19 . 32 32 69 20 54 21 . . 10 47 36 96 54 2 7 61 13 7 12 7 23 2 22 5 . 1 12 5 7 35 26 . 15 4 10 3 2 7 3 . Launcher 424 | . . 7 . 2 . 5 . 6 . . . 6 2 4 . 4 . . . . 6 1 . . . 1 18 . 34 1 5 33 . 10 . 12 6 19 . 36 2 . 37 1 . 9 64 . 92 1 Special . | . . . . . . . . . . . . . . . . . . . . . . . . . . . . . . . . . . . . . . . . . . . . . . . . . . . Kinetic 2086 | 10 79 35 . 13 50 27 122 55 136 12 169 38 110 75 225 132 5 . 84 131 71 . 38 . . . . . 9 3 55 38 133 13 32 2 68 23 . . 31 2 . . . . . . 54 6 Thermal 845 | 10 76 34 . 12 34 76 27 36 . . 2 32 48 8 19 53 9 . 40 99 17 42 5 2 5 21 4 7 10 2 13 2 10 5 . 1 8 1 1 3 26 . 15 4 10 3 2 7 3 1 Explosive 418 | . . 7 . 2 . 5 . 6 . . . 6 2 4 . 4 . . . . 4 1 . . . 1 18 . 34 1 5 30 . 10 . 12 6 19 . 36 2 . 37 1 . 9 64 . 92 . Electromagnetic 285 | . . . . . . . . 13 9 . 10 . 3 4 1 7 . . . 6 3 54 49 . 2 40 9 . 2 5 10 . 12 . . . 4 4 6 32 . . . . . . . . . . Entropic 3 | . . . . . . . . . . . . . . . . . . . . . . . . . . . . . . . . 3 . . . . . . . . . . . . . . . . . . Robot Hit Streak 43 | 4 10 9 . 8 18 8 8 15 18 4 12 9 25 10 20 21 19 . 14 29 16 6 7 . . 3 2 5 9 12 6 9 9 3 5 1 10 9 . 4 11 12 . . . 1 . . 43 19 Robot Miss Streak 7 | 3 5 6 . 3 4 2 3 5 6 3 5 3 5 3 7 6 1 . 3 3 3 5 3 . . 3 2 1 4 1 6 4 6 1 3 2 3 2 . 3 1 1 . . . . . . 4 1 Penetration Max 2 | . . . . . . . . . 1 1 1 . 1 1 2 1 1 . . 1 1 . . . . . . . . . 1 1 1 . . . 1 . . . . . . . . . . . 1 1 Secondary Targets 10 | . . 2 . . . . . 1 1 . 1 . . . 1 . . . 1 3 . . . . . . . . . . . . . . . . . . . . . . . . . . . . . . Max Gunslinging Chain 1 | . . 1 . . . . . 1 1 . 1 . . . 1 . . . 1 1 . . . . . . . . . . . . . . . . . . . . . . . . . . . . . . Shots Hit Robots 2440 | 10 95 41 4 19 60 40 83 34 89 4 87 35 86 45 133 124 14 7 90 148 77 31 47 3 9 22 51 6 54 26 29 48 76 53 22 12 50 24 15 16 75 21 5 22 9 14 16 13 184 162 Core Hits 1817 | 6 35 25 . 11 23 31 29 32 34 4 41 24 39 30 65 53 4 . 39 72 43 16 17 . 5 27 45 . 76 11 19 150 34 48 4 38 25 30 5 66 33 8 58 18 3 25 67 8 253 88 Critical Kills 79 | . 1 . . . . . . . 5 2 5 1 4 5 12 10 1 . 1 4 2 . 1 . . . . 1 1 . 4 2 7 . 3 . 5 . . . . 1 . . . . . . 1 . Critical Parts Destroyed 113 | . . . . 1 . . . . 9 4 7 7 14 1 18 15 1 . . 5 4 . 1 . . . . . . . 5 3 3 2 2 . 3 3 . . . . . . . . . . 5 . Critical Strikes 296 | . 4 . . 3 3 . . . 16 6 13 10 18 7 30 31 3 . 5 14 8 3 4 . 1 . 2 1 3 4 10 5 10 8 12 1 12 4 1 . 6 1 . . . . 2 . 15 20 Burn 18 | . 1 . . 2 3 . . . . . . . . . . 3 1 . 4 4 . . . . . . . . . . . . . . . . . . . . . . . . . . . . . . Meltdown 1 | . . . . . . . . . . . . . . . . . . . . . . . . . . . . 1 . . . . . . . . . . . . . . . . . . . . . . Destroy 210 | . 1 . . 1 . . . . 16 6 12 10 18 7 30 28 2 . 1 9 2 . 2 . . . . . 1 . 9 5 10 2 12 . 9 4 . . 2 1 . . . . . . 10 . Blast 4 | . 2 . . . . . . . . . 1 . . . . . . . . 1 . . . . . . . . . . . . . . . . . . . . . . . . . . . . . . Corrupt 2 | . . . . . . . . . . . . . . . . . . . . . . . 2 . . . . . . . . . . . . . . . . . . . . . . . . . . . Smash 4 | . . . . . . . . . . . . . . . . . . . . . 4 . . . . . . . . . . . . . . . . . . . . . . . . . . . . . Sever 23 | . . . . . . . . . . . . . . . . . . . . . . . . . . . . . . . . . . . . 1 . . . . 1 . . . . . 2 . . 19 Impale 34 | . . . . . . . . . . . . . . . . . . . . . 2 3 . . 1 . 2 . 2 4 1 . . 6 . . 3 . 1 . 3 . . . . . . . 5 1 Melee Attacks 1537 | . . . 4 . . . . . . . . . . . . . 3 7 . . 83 22 8 4 43 14 132 . 93 28 13 27 14 129 . 18 18 12 16 11 166 42 11 34 21 34 26 28 227 249 Impact 41 | . . . . . . . . . . . . . . . . . . . . . 41 . . . . . . . . . . . . . . . . . . . . . . . . . . . . . Slashing 700 | . . . . . . . . . . . . . . . . . . . . . . . . . . . . . . . . . . . . 5 . . 1 1 55 41 11 32 21 34 26 28 207 238 Piercing 726 | . . . . . . . . . . . . . . . . . . . . . 38 22 7 1 43 14 120 . 92 28 13 5 10 126 . 13 16 12 13 10 111 1 . . . . . . 20 11 Sneak Attacks 267 | . . . 4 . . . . . . . . . . . . . 3 7 . . 18 6 4 3 7 1 26 . 15 17 5 22 5 20 . 4 8 4 2 2 24 12 1 13 6 4 . 10 13 1 Combat Hostiles 13 | . . . . . . . . . . . . . . . . . . . . . 1 . . . . . 1 . . . . . 1 2 . . . . . . . 1 . 1 . 1 . 2 2 1 Follow-up Attacks 48 | . . . . . . . . . . . . . . . . . . . . . . . . . . . . . . . . . . . . 1 . . 1 . 6 . . . . . . . 7 33 Damage Inflicted 164449 | 100 1107 963 . 470 954 1438 1543 1323 1387 99 1849 897 1472 1542 1951 1881 182 . 1567 2966 4371 1430 1312 . 586 1450 5538 191 7342 1806 1537 11051 1703 3921 226 3847 1476 2986 819 5124 5095 2815 5649 3699 1420 3340 7519 2093 32758 19654 Guns 21901 | 100 930 524 . 287 954 545 1543 650 1139 99 1247 307 397 720 1585 1365 182 . 1460 2438 647 . 298 . . . . . 24 18 148 207 1262 43 226 9 218 88 . . 69 9 . . . . . . 1842 321 Cannons 7955 | . 177 135 . . . 242 . . 248 . 323 150 767 50 366 251 . . 107 528 375 860 810 . . 847 154 191 59 115 226 . 221 . . . 90 73 . 590 . . . . . . . . . . Explosions 71814 | . . 304 . 183 . 651 . 673 . . 279 440 308 772 . 265 . . . . 1536 147 . . . 409 3552 . 5224 404 770 10767 162 1602 . 3180 648 2601 . 4356 469 . 5193 683 . 1875 5920 . 11947 6494 Melee 62779 | . . . . . . . . . . . . . . . . . . . . . 1813 423 204 . 586 194 1832 . 2035 1269 393 77 58 2276 . 658 520 224 819 178 4557 2806 456 3016 1420 1465 1599 2093 18969 12839 Ramming . | . . . . . . . . . . . . . . . . . . . . . . . . . . . . . . . . . . . . . . . . . . . . . . . . . . . Kinetic 18297 | 32 523 309 . 126 568 305 1507 406 1139 99 1373 307 463 720 1635 605 38 . 983 1484 893 . 298 . . . . . 24 18 148 207 1262 43 226 9 218 88 . . 69 9 . . . . . . 1842 321 Thermal 16305 | 68 584 350 . 161 386 482 36 . . . 211 150 654 22 305 878 144 . 584 1347 727 117 . . . . 1038 191 689 . . . 162 . . 525 . . . . . . . . . . . . . 6494 Explosive 58818 | . . 304 . 183 . 651 . 673 . . 89 440 277 772 . 192 . . . . 866 30 . . . 409 2461 . 4535 404 770 7813 . 1602 . 2655 648 2601 . 4356 469 . 5193 683 . 1875 5920 . 11947 . Electromagnetic 5296 | . . . . . . . . 244 248 . 176 . 78 28 11 206 . . . 135 72 860 810 . . 847 207 . 59 115 226 . 221 . . . 90 73 . 590 . . . . . . . . . . Impact 792 | . . . . . . . . . . . . . . . . . . . . . 792 . . . . . . . . . . . . . . . . . . . . . . . . . . . . . Slashing 45103 | . . . . . . . . . . . . . . . . . . . . . . . . . . . . . . . . . . . . 319 . . 69 . 1780 2806 456 3016 1420 1465 1599 2093 17463 12617 Piercing 16884 | . . . . . . . . . . . . . . . . . . . . . 1021 423 204 . 586 194 1832 . 2035 1269 393 77 58 2276 . 339 520 224 750 178 2777 . . . . . . . 1506 222 Entropic 2954 | . . . . . . . . . . . . . . . . . . . . . . . . . . . . . . . . 2954 . . . . . . . . . . . . . . . . . . Highest Corruption 7 | . . . . . . . . . . . . . . . . . . . . . 3 1 1 1 . . 2 . . . . 1 1 . . . . . . . 7 . 2 . . . 2 . 1 . Average Corruption 1 | . . . . . . . . . . . . . . . . . . . . . 1 1 1 1 . . 1 . . . . 1 1 . . . . . . . 5 . 1 . . . 1 . 1 . Corruption Purged 14 | . . . . . . . . . . . . . . . . . . . . . 3 . . . . . 2 . . . . . 1 . . . . . . . 7 . . . . . . . 1 . Corruption Blocked . | . . . . . . . . . . . . . . . . . . . . . . . . . . . . . . . . . . . . . . . . . . . . . . . . . . . Effects 104 | . . . . . . . . . . . . . . . . . . . . . 4 25 19 . . . 9 . . . . 6 3 . . . . . . . 9 . 20 . . . 9 . . . Message Errors 28 | . . . . . . . . . . . . . . . . . . . . . 1 9 2 . . . 4 . . . . 2 2 . . . . . . . 3 . 3 . . . 2 . . . Matter Fused 27 | . . . . . . . . . . . . . . . . . . . . . 3 6 7 . . . 1 . . . . . . . . . . . . . 3 . 3 . . . 4 . . . Heat Flow Errors 13 | . . . . . . . . . . . . . . . . . . . . . . 1 5 . . . . . . . . . . . . . . . . . . . 6 . . . 1 . . . Energy Discharges 15 | . . . . . . . . . . . . . . . . . . . . . . 4 3 . . . 2 . . . . . . . . . . . . . . . 4 . . . 2 . . . Parts Rejected 1 | . . . . . . . . . . . . . . . . . . . . . . . . . . . . . . . . . . . . . . . . . 1 . . . . . . . . . Data Loss (minor) 11 | . . . . . . . . . . . . . . . . . . . . . . 3 1 . . . 1 . . . . 2 1 . . . . . . . . . 3 . . . . . . . Data Loss (major) 2 | . . . . . . . . . . . . . . . . . . . . . . . 1 . . . . . . . . . . . . . . . . . 1 . . . . . . . . . Misfires 1 | . . . . . . . . . . . . . . . . . . . . . . 1 . . . . . . . . . . . . . . . . . . . . . . . . . . . . Alerts 4 | . . . . . . . . . . . . . . . . . . . . . . 1 . . . . 1 . . . . 1 . . . . . . . . 1 . . . . . . . . . Weapon Failures 2 | . . . . . . . . . . . . . . . . . . . . . . . . . . . . . . . . 1 . . . . . . . . . . 1 . . . . . . . Overload Shots 3 | . . . . . . . . . . . . . . . . . . . . . . . . 2 . . . . . . . 1 . . . . . . . . . . . . . . . . . . Overflow Damage 13991 | . . . . . . 21 . 64 18 . 64 41 41 29 . 48 . . . 36 812 206 43 . 185 20 586 . 615 718 262 329 69 319 . 264 302 267 74 233 577 1198 315 439 582 555 249 634 3212 564 Projectiles 205 | . . . . . . . . . 18 . 8 . 41 . . . . . . 36 . 54 7 . . 20 . . . . . . 21 . . . . . . . . . . . . . . . . . Explosions 3364 | . . . . . . 21 . 64 . . 56 41 . 29 . 48 . . . . 151 . . . . . 316 . 301 35 72 329 . 86 . 230 65 193 . 233 . . 209 8 . 78 49 . 520 230 Melee 10422 | . . . . . . . . . . . . . . . . . . . . . 661 152 36 . 185 . 270 . 314 683 190 . 48 233 . 34 237 74 74 . 577 1198 106 431 582 477 200 634 2692 334 Knockbacks 15 | . 1 . . . . . . . . . . . 1 . 1 . . . 2 5 5 . . . . . . . . . . . . . . . . . . . . . . . . . . . . . Impact 3 | . . . . . . . . . . . . . . . . . . . . . 3 . . . . . . . . . . . . . . . . . . . . . . . . . . . . . Kinetic 12 | . 1 . . . . . . . . . . . 1 . 1 . . . 2 5 2 . . . . . . . . . . . . . . . . . . . . . . . . . . . . . Secondary . | . . . . . . . . . . . . . . . . . . . . . . . . . . . . . . . . . . . . . . . . . . . . . . . . . . . Self-Inflicted Damage 323 | . . . . . . 18 . 22 . . . . . 105 . . . . . . 18 . . . . . . . . . . 160 . . . . . . . . . . . . . . . . . . Shots 6 | . . . . . . 1 . 1 . . . . . 2 . . . . . . 1 . . . . . . . . . . 1 . . . . . . . . . . . . . . . . . . Rammed . | . . . . . . . . . . . . . . . . . . . . . . . . . . . . . . . . . . . . . . . . . . . . . . . . . . . Targets Rammed . | . . . . . . . . . . . . . . . . . . . . . . . . . . . . . . . . . . . . . . . . . . . . . . . . . . . Kicked . | . . . . . . . . . . . . . . . . . . . . . . . . . . . . . . . . . . . . . . . . . . . . . . . . . . . Crushed . | . . . . . . . . . . . . . . . . . . . . . . . . . . . . . . . . . . . . . . . . . . . . . . . . . . . Highest Temperature 414 | 40 176 309 . 193 162 347 210 156 200 44 264 32 146 125 204 257 48 . 322 276 414 272 277 100 80 97 317 20 76 58 48 50 190 156 147 235 211 219 112 175 257 . 286 242 144 102 6 . 20 9 Average Temperature 48 | 18 57 80 . 81 51 92 49 36 52 20 48 11 40 31 35 72 17 . 104 63 71 36 50 33 14 16 35 3 8 22 17 10 35 26 46 78 48 68 47 41 40 . 61 46 37 38 6 . 20 6 Received Heat Transfer 3725 | . 213 264 . 69 198 93 117 27 198 36 252 72 . 90 216 223 . . 207 771 222 18 . . . . 9 . 84 . 6 13 . . . 9 . 27 12 . 69 18 . . . . 36 27 27 102 Effects 8 | . . . . . . . . . . . 1 . . . . . . . . . 1 . 3 . . . . . . . . . . . . . . . . . 2 . . 1 . . . . . . Shutdowns 1 | . . . . . . . . . . . . . . . . . . . . . 1 . . . . . . . . . . . . . . . . . . . . . . . . . . . . . Energy Bleed 1 | . . . . . . . . . . . . . . . . . . . . . . . . . . . . . . . . . . . . . . . . . 1 . . . . . . . . . Interference 6 | . . . . . . . . . . . 1 . . . . . . . . . . . 3 . . . . . . . . . . . . . . . . . 1 . . 1 . . . . . . Siege Activations 43 | . . . . . . . . . . . . . 5 6 17 8 . . 2 5 . . . . . . . . . . . . . . . . . . . . . . . . . . . . . . Total Turns 815 | . . . . . . . . . . . . . 98 67 274 174 . . 64 138 . . . . . . . . . . . . . . . . . . . . . . . . . . . . . . Longest Duration 46 | . . . . . . . . . . . . . 46 18 34 35 . . 34 38 . . . . . . . . . . . . . . . . . . . . . . . . . . . . . . Robots Corrupted 24 | . . . . . . . . . . . . . . . . 2 . . . . 8 2 2 . . 4 1 . . 1 . . . . . . . 1 . 3 . . . . . . . . . . Combat Hostiles 14 | . . . . . . . . . . . . . . . . 1 . . . . . 2 2 . . 3 1 . . 1 . . . . . . . 1 . 3 . . . . . . . . . . Parts Fried 44 | . . . . . . . . . 5 . . . . . . 1 . . . . 9 3 7 . . 6 1 . . 2 . 2 1 . . . . 2 . 3 . . . . . . . . 2 . Impact Corruptions 17 | . . . . . . . . . . . . . . . . . . . . . 17 . . . . . . . . . . . . . . . . . . . . . . . . . . . . . Robots Melted 1 | . . . . . . . . . . . . . . . . . . . . . . . . . . . . 1 . . . . . . . . . . . . . . . . . . . . . . Combat Hostiles 1 | . . . . . . . . . . . . . . . . . . . . . . . . . . . . 1 . . . . . . . . . . . . . . . . . . . . . . Parts Melted 22 | . 1 . . . 2 1 . . . 2 1 . . 2 . 3 . . 6 1 . . . . . . 1 . . . . 2 . . . . . . . . . . . . . . . . . . Heat Transferred 16967 | 150 1369 888 . 555 1147 814 74 . . . 187 249 1036 37 518 1987 370 . 1554 3212 700 100 . . . . 650 300 350 . . . 150 . . 300 . . . . . . . . . . . . . 270 Parts Sabotaged . | . . . . . . . . . . . . . . . . . . . . . . . . . . . . . . . . . . . . . . . . . . . . . . . . . . . Parts Stolen . | . . . . . . . . . . . . . . . . . . . . . . . . . . . . . . . . . . . . . . . . . . . . . . . . . . . Parts Stripped . | . . . . . . . . . . . . . . . . . . . . . . . . . . . . . . . . . . . . . . . . . . . . . . . . . . . Power Chain Reactions 4 | . . . . . . . . . . . . . 1 . . 1 . . . . . 1 . . . . . . . . . . 1 . . . . . . . . . . . . . . . . . Alert | -11 -10 -10 -10 -9 -8 -8 -8 -8 -8 -8 -8 -8 -8 -8 -8 -8 -8 -8 -6 -6 -6 -6 -6 -6 -6 -5 -5 -5 -5 -5 -5 -5 -4 -4 -4 -4 -4 -4 -4 -3 -3 -3 -3 -2 -2 -2 -2 -1 -1 -1 ------- Run | Yrd Mat Min Exi Min Mat Gar Mat Gar Mat Gar Mat Gar Mat Gar Mat Sto Rec Scr Fac Gar Fac Low Low Zio Dee Pro Fac Was Fac Upp Upp War Pro Fac Was Fac Upp Upp Zhi Pro Res Qua Gar Res Tes Sec Gar Acc Com Ac0 Peak Influence 2858 | 20 410 262 . 175 265 781 604 1115 679 194 200 771 442 693 423 294 159 . 324 1846 2136 . . . . . 1368 480 2111 . . . . 469 149 2858 . . . . 287 218 1452 711 213 318 1767 1078 724 . Initial 1060 | . 13 101 . . 68 25 380 150 543 152 94 118 375 44 337 50 . . . 128 968 . . . . . 226 478 336 . . . . 427 149 . . . . . 272 110 18 705 . . 79 1060 160 . Average 346 | 6 199 114 . 74 148 466 364 668 287 174 94 330 93 379 82 108 38 . 98 743 1264 . . . . . 601 479 857 . . . . 280 109 1430 . . . . 136 69 930 114 53 126 1189 497 523 . Maximum Alert Level 5 | . 2 1 . . 1 3 2 4 2 . 1 3 2 2 2 1 . . 1 5 5 . . . . . 4 2 5 . . . . 2 . 5 . . . . 1 1 4 3 1 1 5 3 5 . Low Security (%) 50 | 100 46 90 . 100 81 23 . 6 32 100 97 31 84 23 94 84 100 . 79 3 . . . . . . . . 16 . . . . 19 100 6 . . . . 82 95 7 96 98 82 2 . 1 . Level 1 17 | . 48 9 . . 18 9 67 24 53 . 2 34 10 12 4 15 . . 20 20 . . . . . . 22 . 11 . . . . 62 . 5 . . . . 17 4 12 . 1 17 5 66 1 . Level 2 13 | . 4 . . . . 45 32 26 14 . . 33 5 63 1 . . . . 37 3 . . . . . 44 100 25 . . . . 18 . 3 . . . . . . 2 . . . 11 4 17 . Level 3 7 | . . . . . . 21 . 25 . . . . . . . . . . . 15 56 . . . . . 29 . 16 . . . . . . 28 . . . . . . 25 3 . . 13 29 1 . Level 4 3 | . . . . . . . . 17 . . . . . . . . . . . 15 7 . . . . . 3 . 8 . . . . . . 20 . . . . . . 52 . . . 38 . 2 . Level 5 7 | . . . . . . . . . . . . . . . . . . . . 7 28 . . . . . . . 21 . . . . . . . . . . . . . . . . . 28 . 77 . High Security . | . . . . . . . . . . . . . . . . . . . . . 4 . . . . . . . . . . . . . . 34 . . . . . . . . . . . . . . Max Security . | . . . . . . . . . . . . . . . . . . . . . . . . . . . . . . . . . . . . . . . . . . . . . . . . . . . Squads Dispatched 139 | . 5 1 . . . . 4 . 5 . 8 . 4 . 1 . . . 5 . 17 . . . . . 16 . 13 . . . . 11 . 11 . . . 1 11 4 . 2 6 3 . 7 4 . Investigation 31 | . 1 1 . . . . 2 . 1 . 1 . 3 . . . . . . . 4 . . . . . 3 . 2 . . . . 2 . 1 . . . 1 6 . . 1 1 . . 1 . . Extermination 31 | . . . . . . . . . . . . . . . . . . . 1 . 2 . . . . . 3 . 3 . . . . 5 . . . . . . 4 4 . . 2 3 . 2 2 . Reinforcement 35 | . 4 . . . . . 1 . 2 . . . 1 . 1 . . . 1 . 3 . . . . . 6 . 1 . . . . 3 . 2 . . . . 1 . . 1 3 . . 4 1 . Assault 28 | . . . . . . . . . . . . . . . . . . . . . 8 . . . . . 4 . 7 . . . . 1 . 7 . . . . . . . . . . . . 1 . Garrison 14 | . . . . . . . 1 . 2 . 7 . . . . . . . 3 . . . . . . . . . . . . . . . . 1 . . . . . . . . . . . . . . Intercept . | . . . . . . . . . . . . . . . . . . . . . . . . . . . . . . . . . . . . . . . . . . . . . . . . . . . Searches Triggered . | . . . . . . . . . . . . . . . . . . . . . . . . . . . . . . . . . . . . . . . . . . . . . . . . . . . Construction Impeded 8 | . . . . . . . . . . . . . 1 . . . . . . . . . . . . . 2 . . . . . . 2 . 2 . . . . . . . . . . . 1 . . Haulers Reinforced 7 | . . . . . . . . . . . . . . . . . . . . . 3 . . . . . 1 . 1 . . . . 1 . . . . . . . . . . 1 . . . . . Active Scanning Responses . | . . . . . . . . . . . . . . . . . . . . . . . . . . . . . . . . . . . . . . . . . . . . . . . . . . . Cargo Convoy Interrupts 1 | . . . . . . . . . . . . . . . . . . . . . . . . . . . 1 . . . . . . . . . . . . . . . . . . . . . . . Stealth | -11 -10 -10 -10 -9 -8 -8 -8 -8 -8 -8 -8 -8 -8 -8 -8 -8 -8 -8 -6 -6 -6 -6 -6 -6 -6 -5 -5 -5 -5 -5 -5 -5 -4 -4 -4 -4 -4 -4 -4 -3 -3 -3 -3 -2 -2 -2 -2 -1 -1 -1 --------- Run | Yrd Mat Min Exi Min Mat Gar Mat Gar Mat Gar Mat Gar Mat Gar Mat Sto Rec Scr Fac Gar Fac Low Low Zio Dee Pro Fac Was Fac Upp Upp War Pro Fac Was Fac Upp Upp Zhi Pro Res Qua Gar Res Tes Sec Gar Acc Com Ac0 Distress Signals 69 | . 3 . . 1 . . . . 3 . 1 . 1 . 4 6 . . 1 . 4 2 1 . . 4 1 . 2 . . . 2 2 . 5 . . . . 2 1 . 4 . . . 1 18 . Communications Jammed 97 | . . . . . . . . . . . . . . . . . . . . . . . . . . . . . . . . . 1 24 . 10 . . . . . . . . . 58 . 1 3 . Distress Signals 96 | . . . . . . . . . . . . . . . . . . . . . . . . . . . . . . . . . . 24 . 10 . . . . . . . . . 58 . 1 3 . Times Spotted 822 | . 29 16 . 6 10 20 15 27 22 3 20 8 20 17 20 26 3 . 16 22 49 12 2 . 4 6 19 . 40 . 7 66 10 21 . 28 3 18 2 3 25 11 11 26 3 8 21 9 65 53 Peak Tracking Total 19 | . 6 3 . 4 4 5 3 6 6 3 6 6 3 6 3 4 2 . 4 7 9 7 4 . 2 5 6 . 7 1 5 17 6 2 . 10 5 5 2 7 7 3 8 7 1 2 8 2 15 19 Tactical Retreats 235 | . 6 . . . . 1 2 . 3 . 3 1 . 1 1 5 . . 2 7 15 23 20 . . 20 7 . 8 3 10 . 22 2 . 1 19 9 . 13 11 1 4 . . 2 1 . 10 2 Traps | -11 -10 -10 -10 -9 -8 -8 -8 -8 -8 -8 -8 -8 -8 -8 -8 -8 -8 -8 -6 -6 -6 -6 -6 -6 -6 -5 -5 -5 -5 -5 -5 -5 -4 -4 -4 -4 -4 -4 -4 -3 -3 -3 -3 -2 -2 -2 -2 -1 -1 -1 ------- Run | Yrd Mat Min Exi Min Mat Gar Mat Gar Mat Gar Mat Gar Mat Gar Mat Sto Rec Scr Fac Gar Fac Low Low Zio Dee Pro Fac Was Fac Upp Upp War Pro Fac Was Fac Upp Upp Zhi Pro Res Qua Gar Res Tes Sec Gar Acc Com Ac0 Traps Triggered 44 | . . . . . . 2 2 3 . . 1 1 2 . 1 . . . . . 4 . . . . . 5 . 2 . . . . 1 . 2 . . . . 2 . 1 . . . 11 1 3 . Indirectly . | . . . . . . . . . . . . . . . . . . . . . . . . . . . . . . . . . . . . . . . . . . . . . . . . . . . Trap Hack Attempts 358 | . . . . . . . . . . . . . . . 3 . . . . . 98 . . . . . 50 . 28 . . . . 146 . 6 . . . . 4 . . . . . . . 23 . Triggered . | . . . . . . . . . . . . . . . . . . . . . . . . . . . . . . . . . . . . . . . . . . . . . . . . . . . Disarmed 28 | . . . . . . . . . 6 . . . . . . . . . . . . . . . . . . . 2 . . . . 4 . 6 . . . . . 4 . . . 4 . . 2 . Reprogrammed 119 | . . . . . . . . . . . . . . . 1 . . . . . 8 . . . . . 14 . 7 . . . . 41 . 2 . . . . 13 4 . . 7 6 . 10 6 . Reused 76 | . . . . . . . . . . . . . . . 1 . . . . . 2 6 2 . 1 2 9 . 11 . . . 3 19 . 1 . . . 1 5 1 . . 2 . . 2 . 8 Traps Extracted 28 | . . . . . . . . . . . . . . . . . . . . . 8 . . . 1 . . . 1 . . . . 8 . . . . . 4 . . . . . . . . 6 . Installed 52 | . . . . . . . . . . . . . . . . . . . . . 2 6 6 . 7 2 . . 7 4 . . 4 2 . . . . . 2 . . . . . 1 . . 1 8 Triggered 75 | . . . . . . . . . . . . . . . 1 1 . . . . 2 . 2 . . 3 11 . 11 . 1 7 4 19 . 1 . 1 . 1 5 1 . . 2 . . 2 . . Most Traps Carried 17 | . . . . . . . . . . . . . . . . . . . . . 6 6 7 6 6 6 6 6 6 6 6 6 8 12 12 12 12 12 12 16 16 16 16 16 16 16 15 15 17 8 Objects Rigged 8 | . . . . . . . . . . . . . . . . . . . . . . . . . . . 5 . 3 . . . . . . . . . . . . . . . . . . . . . Exploded 4 | . . . . . . . . . . . . . . . . . . . . . . . . . . . 3 . 1 . . . . . . . . . . . . . . . . . . . . . Time Bombs Activated 1 | . . . . . . . . . . . . . . . . . . . . . . . . . . . . . . . . . . . . . . . . . . . . . . . . . . 1 Exploded 1 | . . . . . . . . . . . . . . . . . . . . . . . . . . . . . . . . . . . . . . . . . . . . . . . . . . 1 Machines | -11 -10 -10 -10 -9 -8 -8 -8 -8 -8 -8 -8 -8 -8 -8 -8 -8 -8 -8 -6 -6 -6 -6 -6 -6 -6 -5 -5 -5 -5 -5 -5 -5 -4 -4 -4 -4 -4 -4 -4 -3 -3 -3 -3 -2 -2 -2 -2 -1 -1 -1 ---------- Run | Yrd Mat Min Exi Min Mat Gar Mat Gar Mat Gar Mat Gar Mat Gar Mat Sto Rec Scr Fac Gar Fac Low Low Zio Dee Pro Fac Was Fac Upp Upp War Pro Fac Was Fac Upp Upp Zhi Pro Res Qua Gar Res Tes Sec Gar Acc Com Ac0 Machines Disabled 269 | . 1 1 . . . 2 1 4 3 . 7 1 6 3 2 9 . . . 10 32 2 1 1 4 1 31 . 36 . . 3 1 2 . 19 2 1 1 1 . 3 10 . 4 6 12 . 25 21 Max in Single Turn 12 | . 1 1 . . . 1 . 2 2 . 2 1 2 2 1 2 . . . 2 12 1 1 1 1 1 8 . 5 . . 1 1 1 . 9 1 1 1 1 . 1 2 . 1 1 2 . 2 1 Garrison Access 17 | . . . . . . . . . . . . . . . . 1 . . . . 2 . . . . . 1 . 1 . . . . 3 . 1 . . . . 3 . . 3 . . . 2 . . Garrison Relay 13 | . . . . . . 1 . . . . . . . . . . . . . 5 . . . . . . . . . . . . . . . . . . . . . . 4 . . . 3 . . . Phase Generator 6 | . . . . . . . . 1 . . . . . 1 . . . . . 1 . . . . . . . . . . . . . . . . . . . . . . 1 . . . 1 . 1 . Machines Repaired . | . . . . . . . . . . . . . . . . . . . . . . . . . . . . . . . . . . . . . . . . . . . . . . . . . . . Machines Dismantled 4 | . . . . . . . . . . . . . . . . 4 . . . . . . . . . . . . . . . . . . . . . . . . . . . . . . . . . . Machines Sabotaged . | . . . . . . . . . . . . . . . . . . . . . . . . . . . . . . . . . . . . . . . . . . . . . . . . . . . Overloaded Fab Kills . | . . . . . . . . . . . . . . . . . . . . . . . . . . . . . . . . . . . . . . . . . . . . . . . . . . . Hacking | -11 -10 -10 -10 -9 -8 -8 -8 -8 -8 -8 -8 -8 -8 -8 -8 -8 -8 -8 -6 -6 -6 -6 -6 -6 -6 -5 -5 -5 -5 -5 -5 -5 -4 -4 -4 -4 -4 -4 -4 -3 -3 -3 -3 -2 -2 -2 -2 -1 -1 -1 --------- Run | Yrd Mat Min Exi Min Mat Gar Mat Gar Mat Gar Mat Gar Mat Gar Mat Sto Rec Scr Fac Gar Fac Low Low Zio Dee Pro Fac Was Fac Upp Upp War Pro Fac Was Fac Upp Upp Zhi Pro Res Qua Gar Res Tes Sec Gar Acc Com Ac0 Machines Accessed 332 | . 6 1 1 1 5 3 6 2 12 . 5 3 9 2 12 12 12 3 4 2 28 1 1 . . 1 27 . 23 2 . 1 . 29 . 5 1 . 6 1 20 16 3 8 12 14 2 17 11 2 Terminals 196 | . 5 . . 1 3 3 2 2 10 . 3 3 7 2 8 8 6 . 2 2 14 . 1 . . 1 13 . 12 1 . . . 14 . 2 . . . 1 8 12 3 4 8 12 2 12 9 . Fabricators 21 | . . . . . . . . . . . . . . . . . . . 1 . 4 . . . . . 4 . 3 . . . . 4 . 1 . . . . 3 . . . . . . 1 . . Repair Stations 23 | . . . . . . . . . 1 . . . 1 . 2 1 . . . . 3 . . . . . 3 . 2 . . . . 3 . 1 . . . . 1 1 . . 1 . . 2 1 . Recycling Units 24 | . 1 . . . . . 1 . . . . . . . . 2 4 . . . 1 . . . . . 4 . 4 . . . . 3 . . . . . . 2 . . 1 . . . . 1 . Scanalyzers 22 | . . . . . 1 . 2 . . . 1 . . . 2 . . . . . 3 . . . . . 2 . 1 . . . . 2 . . . . . . 3 2 . . 2 1 . . . . Garrison Access 27 | . . . . . 1 . 1 . 1 . 1 . 1 . . 1 . . 1 . 3 . . . . . 1 . 1 . . . . 3 . 1 . . . . 3 1 . 3 1 1 . 2 . . Total Hacks 1452 | . 24 1 1 4 23 6 22 4 61 . 25 5 36 5 61 33 52 21 10 2 73 1 6 . . 2 90 . 125 2 . 1 . 149 . 25 1 . 25 6 136 78 21 55 75 63 9 47 40 26 Successful 960 | . 10 1 1 4 12 2 11 2 34 . 19 2 17 1 46 18 41 21 6 1 31 1 6 . . 2 54 . 83 2 . 1 . 107 . 18 1 . 25 6 94 55 11 31 47 43 5 30 32 26 Failed 486 | . 13 . . . 11 4 11 2 26 . 6 3 18 4 15 15 11 . 4 1 42 . . . . . 36 . 41 . . . . 41 . 7 . . . . 42 23 10 24 27 20 4 17 8 . Catastrophic 67 | . 1 . . . . 1 . . 4 . 1 1 2 . 2 . 1 . 1 1 10 . . . . . 8 . 7 . . . . 3 . . . . . . 2 5 3 4 3 2 1 2 2 . Database Lockouts 6 | . 1 . . . . . . . 1 . . . 1 . . . . . . . . . . . . . . . 1 . . . . 1 . . . . . . . . . . 1 . . . . . Manual 679 | . 10 . 1 3 14 . 6 3 42 . 10 2 25 . 29 14 20 . 5 . 23 . . . . 1 38 . 63 . . . . 73 . 11 . . . . 70 40 19 43 42 34 8 8 21 1 Terminals 937 | . 23 . . 4 16 6 7 4 55 . 14 5 28 5 32 22 18 . 6 2 43 . 6 . . 2 45 . 74 1 . . . 87 . 18 . . . 6 88 58 21 47 61 55 9 35 34 . Fabricators 80 | . . . . . . . . . . . . . . . . . . . 2 . 9 . . . . . 10 . 24 . . . . 16 . 4 . . . . 13 . . . . . . 2 . . Repair Stations 82 | . . . . . . . . . 2 . . . 2 . 16 2 . . . . 9 . . . . . 11 . 6 . . . . 10 . 1 . . . . 4 8 . . 2 . . 6 3 . Recycling Units 85 | . 1 . . . . . 2 . . . . . . . . 8 10 . . . 2 . . . . . 13 . 19 . . . . 13 . . . . . . 10 . . 4 . . . . 3 . Scanalyzers 103 | . . . . . 2 . 9 . . . 8 . . . 13 . . . . . 6 . . . . . 10 . 1 . . . . 19 . . . . . . 18 6 . . 8 3 . . . . Garrison Access 63 | . . . . . 5 . 4 . 4 . 3 . 6 . . 1 . . 2 . 4 . . . . . 1 . 1 . . . . 4 . 2 . . . . 3 6 . 4 4 5 . 4 . . Terminal Hacks 514 | . 5 1 1 2 5 2 3 1 21 . 6 2 7 1 10 8 32 21 2 1 10 1 6 . . 2 13 . 34 2 . 1 . 49 . 10 1 . 25 6 42 26 11 24 28 24 4 19 19 26 Record 92 | . . . . . . . . . . . . . . . . . 24 21 . . . . 6 . . 2 . . . 1 . . . . . . 1 . 14 6 . . . . . . . . . 17 Part Schematic 25 | . . . . . . . . . . . . . . . . . 1 . . . 1 . . . . . 1 . . . . . . 6 . . . . 4 . 8 2 . . 1 1 . . . . Robot Schematic 3 | . . . . . . . . . . . . . . . . . 1 . . . . . . . . . . . 2 . . . . . . . . . . . . . . . . . . . . . Robot Analysis 48 | . 1 . . 1 3 . . . 5 . . . . . 4 1 1 . . . . . . . . . . . 1 . . . . 16 . 1 . . 3 . 2 3 2 1 2 . . . 1 . Prototype ID Bank 39 | . . . . . 1 . 1 . 2 . 1 . 1 . 1 . . . . . . . . . . . . . 6 . . . . 5 . 1 . . 4 . 4 4 . 4 1 2 . . 1 . Open Door 17 | . . 1 . . . 1 . . . . . . . . . 2 . . . . . 1 . . . . . . . 1 . 1 . . . . . . . . . 1 1 . . 4 . 3 1 . Level Access Points 4 | . . . . . . . . . 1 . . . . . . . 1 . . . . . . . . . . . . . . . . . . . . . . . . . . 1 1 . . . . . Branch Access Points 6 | . . . . . . . . . . . 1 . . . . . 1 . . . . . . . . . . . 1 . . . . . . 1 . . . . 1 . . 1 . . . . . . Emergency Access Points 5 | . . . . . . 1 . . . . . 1 . 1 . . . . . 1 . . . . . . . . . . . . . . . . . . . . . . . . 1 . . . . . Machine Index 9 | . . . . . . . . . . . . . . . . . . . . . . . . . . . . . 1 . . . . . . 1 . . . . 1 1 . 1 1 1 . 1 1 . Terminal Index 6 | . 1 . . . . . . . 1 . . . . . . . 1 . . . . . . . . . . . 1 . . . . . . . . . . . 1 . . . 1 . . . . . Repair Station Index 1 | . . . . . . . . . 1 . . . . . . . . . . . . . . . . . . . . . . . . . . . . . . . . . . . . . . . . . Scanalyzer Index 1 | . . . . . . . . . . . . . . . . . . . . . . . . . . . 1 . . . . . . . . . . . . . . . . . . . . . . . Garrison Index 3 | . . . . . . . . . . . . . . . 1 . . . . . . . . . . . . . . . . . . . . . . . . . 1 . . . 1 . . . . . Alert Level 20 | . . . . . . . 1 . 2 . 2 . . . 1 . . . . . 1 . . . . . . . 2 . . . . 3 . . . . . . 1 . 1 2 3 . . 1 . . Unreport Threat 54 | . . . . . . . . . 3 . . . 1 . 1 3 1 . . . 2 . . . . . 2 . 5 . . . . 5 . . . . . . 3 2 4 6 1 4 3 5 3 . Locate Traps 42 | . 1 . . . 1 . . . 1 . 1 . 2 . 1 2 . . 1 . 3 . . . . . 4 . 4 . . . . . . 2 . . . . 6 3 . . 2 4 . 3 1 . Disarm Traps 5 | . . . . . . . . . 1 . . . . . . . . . . . . . . . . . . . . . . . . . . 1 . . . . . 1 . . . 1 . . 1 . Reprogram Traps 15 | . . . . . . . . . . . . . . . . . . . . . . . . . . . 1 . 2 . . . . 3 . . . . . . 2 1 . . 3 1 . 2 . . Maintenance Status 3 | . . . . . . . . . . . . . . . . . . . . . . . . . . . . . . . . . . . . . . . . . . 1 . . 1 . . . 1 . Security Status 2 | . . . . . . . . . . . . . . . . . . . . . . . . . . . . . . . . . . . . . . . . . . . . . . . . . 2 . Surveillance Status 5 | . . . . . . . . . . . . . . . . . . . . . . . . . . . . . 1 . . . . . . . . . . . . 1 . . 1 1 . . 1 . Patrol Status 7 | . . . . 1 . . . . . . . . . . . . . . . . . . . . . . . . . . . . . . . . . . . . 1 1 . . 1 1 . 1 1 . Transport Status 3 | . . . . . . . . . . . . . . . . . . . . . . . . . . . . . . . . . . . . . . . . . . . . 2 1 . . . . . Assault Status 1 | . . . . . . . . . . . . . . . . . . . . . . . . . . . . . 1 . . . . . . . . . . . . . . . . . . . . . Recall Investigation 5 | . . . . . . . . . . . . . . . . . . . . . . . . . . . 1 . . . . . . 1 . . . . . . 2 . . 1 . . . . . . Recall Extermination 15 | . . . . . . . . . . . . . . . . . . . . . . . . . . . 1 . . . . . . 3 . . . . . . 3 3 . . 1 3 . 1 . . Recall Reinforcements 9 | . . . . . . . 1 . 1 . . . 1 . . . . . . . . . . . . . . . 2 . . . . 1 . . . . . . . . . . 3 . . . . . Recall Assault 4 | . . . . . . . . . . . . . . . . . . . . . . . . . . . 1 . 2 . . . . . . . . . . . . . . . . . . . 1 . Hauler Manifests 22 | . 1 . . . . . . . 1 . . . 1 . 1 . . . 1 . 2 . . . . . 1 . 2 . . . . 2 . 1 . . . . 2 1 . 3 1 1 . 1 . . Registered Components 9 | . 1 . . . . . . . 1 . 1 . 1 . . . . . . . . . . . . . . . . . . . . 1 . . . . . . . . . 1 1 . . 1 1 . Registered Prototypes 3 | . . . . . . . . . . . . . . . . . . . . . . . . . . . . . . . . . . 1 . . . . . . 1 . . 1 . . . . . . Zone Layout 13 | . . . . . . . . . 1 . . . . . . . 1 . . . 1 . . . . . . . 1 . . . . 2 . 2 . . . . 3 1 . . . . . . 1 . Garrison Registry 3 | . . . . . . . . 1 . . . . . . . . . . . . . . . . . . . . . . . . . . . . . . . . . . 1 . . . 1 . . . Patrol Navigation 2 | . . . . . . . . . . . . 1 . . . . . . . . . . . . . . . . . . . . . . . . . . . . . . 1 . . . . . . . Security Stations 1 | . . . . . . . . . . . . . . . . . . . . . . . . . . . . . . . . . . . . . . . . . . . 1 . . . . . . . Derelict Proto ID Bank 1 | . . . 1 . . . . . . . . . . . . . . . . . . . . . . . . . . . . . . . . . . . . . . . . . . . . . . . Disengage Seal 2 | . . . . . . . . . . . . . . . . . . . . . . . . . . . . . . . . . . . . . . . . . . . . . . . . . 2 . Gate Test 138-A 3 | . . . . . . . . . . . . . . . . . . . . . . . . . . . . . . . . . . . . . . . . . . . . . . . . . . 3 Gate Test 138-B 2 | . . . . . . . . . . . . . . . . . . . . . . . . . . . . . . . . . . . . . . . . . . . . . . . . . . 2 Gate Test 138-C 2 | . . . . . . . . . . . . . . . . . . . . . . . . . . . . . . . . . . . . . . . . . . . . . . . . . . 2 Gate Test 138-END 2 | . . . . . . . . . . . . . . . . . . . . . . . . . . . . . . . . . . . . . . . . . . . . . . . . . . 2 Fabricator Hacks 38 | . . . . . . . . . . . . . . . . . . . 1 . 2 . . . . . 5 . 13 . . . . 6 . 2 . . . . 7 . . . . . . 2 . . Network Status 4 | . . . . . . . . . . . . . . . . . . . . . 1 . . . . . . . 1 . . . . 1 . . . . . . 1 . . . . . . . . . Load Schematic 17 | . . . . . . . . . . . . . . . . . . . . . 1 . . . . . 3 . 6 . . . . 2 . 1 . . . . 3 . . . . . . 1 . . Build 17 | . . . . . . . . . . . . . . . . . . . 1 . . . . . . . 2 . 6 . . . . 3 . 1 . . . . 3 . . . . . . 1 . . Repair Station Hacks 69 | . . . . . . . . . 2 . . . 2 . 16 2 . . . . 7 . . . . . 9 . 4 . . . . 6 . 1 . . . . 3 8 . . 2 . . 5 2 . Scan Component 31 | . . . . . . . . . 1 . . . 1 . 8 1 . . . . 3 . . . . . 4 . 2 . . . . 3 . . . . . . 1 3 . . 1 . . 2 1 . Repair 31 | . . . . . . . . . 1 . . . 1 . 8 1 . . . . 3 . . . . . 4 . 2 . . . . 3 . . . . . . 1 3 . . 1 . . 2 1 . Refit 7 | . . . . . . . . . . . . . . . . . . . . . 1 . . . . . 1 . . . . . . . . 1 . . . . 1 2 . . . . . 1 . . Recycling Unit Hacks 19 | . . . . . . . 1 . . . . . . . . 1 3 . . . . . . . . . 3 . 4 . . . . 3 . . . . . . 2 . . 1 . . . . 1 . Report Inventory 1 | . . . . . . . . . . . . . . . . . . . . . . . . . . . . . . . . . . . . . . . . . 1 . . . . . . . . . Retrieve Components 18 | . . . . . . . 1 . . . . . . . . 1 3 . . . . . . . . . 3 . 4 . . . . 3 . . . . . . 1 . . 1 . . . . 1 . Scanalyzer 83 | . . . . . 1 . 4 . . . 7 . . . 13 . . . . . 4 . . . . . 8 . . . . . . 19 . . . . . . 16 5 . . 4 2 . . . . Insert Component 42 | . . . . . 1 . 3 . . . 4 . . . 5 . . . . . 2 . . . . . 4 . . . . . . 8 . . . . . . 8 3 . . 2 2 . . . . Analyze 41 | . . . . . . . 1 . . . 3 . . . 8 . . . . . 2 . . . . . 4 . . . . . . 11 . . . . . . 8 2 . . 2 . . . . . Garrison Access Hacks 24 | . . . . . 1 . 1 . 1 . 1 . 1 . . 1 . . 1 . 1 . . . . . 1 . 1 . . . . 3 . 1 . . . . 3 1 . 3 . 1 . 2 . . Unlock Access 8 | . . . . . 1 . 1 . 1 . 1 . 1 . . . . . 1 . . . . . . . . . . . . . . . . . . . . . . 1 . . . 1 . . . . Seal Access 16 | . . . . . . . . . . . . . . . . 1 . . . . 1 . . . . . 1 . 1 . . . . 3 . 1 . . . . 3 . . 3 . . . 2 . . Unauthorized Hacks 213 | . 5 . . 2 5 . 2 1 10 . 5 . 7 . 7 6 6 . 2 . 7 . . . . . 15 . 27 . . . . 21 . 4 . . . . 21 15 . 3 13 16 1 2 10 . Terminals 123 | . 4 . . 2 2 . 2 1 9 . 3 . 5 . 7 2 2 . 1 . 4 . . . . . 6 . 10 . . . . 9 . 3 . . . . 10 10 . 2 8 11 1 2 7 . Track 19 | . . . . 1 . . . . 1 . . . . . . . . . . . . . . . . . . . 1 . . . . 1 . 1 . . . . 3 3 . 1 1 4 . . 2 . Assimilate 28 | . . . . . . . . . 1 . 1 . 1 . 3 . . . . . . . . . . . 2 . 4 . . . . 3 . . . . . . 2 4 . . 2 2 . 2 1 . Botnet 45 | . 3 . . . 1 . 1 1 4 . 1 . 3 . 3 1 2 . 1 . 2 . . . . . 2 . 3 . . . . 4 . 1 . . . . 3 2 . . 3 2 1 . 1 . Detonate 2 | . . . . . . . . . . . . . . . . . . . . . . . . . . . 1 . 1 . . . . . . . . . . . . . . . . . . . . . Disrupt 10 | . . . . 1 . . . . 3 . . . . . 1 . . . . . . . . . . . . . . . . . . . . . . . . . 1 . . . 1 2 . . 1 . Operators 19 | . 1 . . . 1 . 1 . . . 1 . 1 . . 1 . . . . 2 . . . . . 1 . 1 . . . . 1 . 1 . . . . 1 1 . 1 1 1 . . 2 . Fabricators 24 | . . . . . . . . . . . . . . . . . . . 1 . 3 . . . . . 3 . 5 . . . . 6 . 1 . . . . 5 . . . . . . . . . Report 5 | . . . . . . . . . . . . . . . . . . . . . 1 . . . . . 1 . 1 . . . . 1 . . . . . . 1 . . . . . . . . . Prioritize 9 | . . . . . . . . . . . . . . . . . . . 1 . . . . . . . . . 2 . . . . 2 . 1 . . . . 3 . . . . . . . . . Liberate 5 | . . . . . . . . . . . . . . . . . . . . . 1 . . . . . 1 . 1 . . . . 2 . . . . . . . . . . . . . . . . Haulers 5 | . . . . . . . . . . . . . . . . . . . . . 1 . . . . . 1 . 1 . . . . 1 . . . . . . 1 . . . . . . . . . Repair Stations 2 | . . . . . . . . . . . . . . . . . . . . . . . . . . . . . 1 . . . . . . . . . . . . . . . . . . . 1 . Mechanics 2 | . . . . . . . . . . . . . . . . . . . . . . . . . . . . . 1 . . . . . . . . . . . . . . . . . . . 1 . Recycling Units 40 | . 1 . . . . . . . . . . . . . . 4 4 . . . . . . . . . 6 . 10 . . . . 6 . . . . . . 6 . . 1 . . . . 2 . Monitor 5 | . . . . . . . . . . . . . . . . . . . . . . . . . . . 1 . 1 . . . . 1 . . . . . . 1 . . 1 . . . . . . Reject 15 | . . . . . . . . . . . . . . . . 2 1 . . . . . . . . . 2 . 4 . . . . 3 . . . . . . 2 . . . . . . . 1 . Recyclers 6 | . . . . . . . . . . . . . . . . 1 . . . . . . . . . . 1 . 1 . . . . 1 . . . . . . 2 . . . . . . . . . Mask 10 | . . . . . . . . . . . . . . . . 1 . . . . . . . . . . 2 . 4 . . . . 1 . . . . . . 1 . . . . . . . 1 . Tunnel 4 | . 1 . . . . . . . . . . . . . . . 3 . . . . . . . . . . . . . . . . . . . . . . . . . . . . . . . . . Scanalyzers 5 | . . . . . . . . . . . . . . . . . . . . . . . . . . . . . 1 . . . . . . . . . . . . 1 . . 2 1 . . . . Researchers 4 | . . . . . . . . . . . . . . . . . . . . . . . . . . . . . . . . . . . . . . . . . . 1 . . 2 1 . . . . Extract 1 | . . . . . . . . . . . . . . . . . . . . . . . . . . . . . 1 . . . . . . . . . . . . . . . . . . . . . Garrison Access 19 | . . . . . 3 . . . 1 . 2 . 2 . . . . . . . . . . . . . . . . . . . . . . . . . . . . 4 . . 3 4 . . . . Broadcast 3 | . . . . . . . . . . . 1 . . . . . . . . . . . . . . . . . . . . . . . . . . . . . . 1 . . . 1 . . . . Redirect 3 | . . . . . 1 . . . . . . . . . . . . . . . . . . . . . . . . . . . . . . . . . . . . . . . 1 1 . . . . Reprogram 6 | . . . . . 1 . . . 1 . 1 . 1 . . . . . . . . . . . . . . . . . . . . . . . . . . . . 1 . . 1 . . . . . Intercept 5 | . . . . . 1 . . . . . . . 1 . . . . . . . . . . . . . . . . . . . . . . . . . . . . 1 . . 1 1 . . . . Watchers 2 | . . . . . . . . . . . . . . . . . . . . . . . . . . . . . . . . . . . . . . . . . . 1 . . . 1 . . . . Data Cores Recovered 1 | . . . . . . . . . . . . . . . . . . . . . . . . . . . . . . . . . . . . . . . . . . . . . . . . 1 . . Used . | . . . . . . . . . . . . . . . . . . . . . . . . . . . . . . . . . . . . . . . . . . . . . . . . . . . Hacking Detections 253 | . 5 . . 1 5 3 6 2 12 . 5 3 9 2 13 10 7 . 3 1 26 . 1 . . . 23 . 16 . . . . 22 . 3 . . . 1 17 12 2 6 7 8 2 13 7 . Full Trace Events 17 | . . . . . . . . . . . . . . . . . . . . . 2 . . . . . 3 . 1 . . . . 2 . 1 . . . 1 4 . . 1 . . 1 1 . . Feedback Events . | . . . . . . . . . . . . . . . . . . . . . . . . . . . . . . . . . . . . . . . . . . . . . . . . . . . Feedback Blocked . | . . . . . . . . . . . . . . . . . . . . . . . . . . . . . . . . . . . . . . . . . . . . . . . . . . . Robot Schematics Acquired 3 | . . . . . . . . . . . . . . . . . 1 . . . . . . . . . . . 2 . . . . . . . . . . . . . . . . . . . . . Robots Built 12 | . . . . . . . . . . . . . . . . . . . . . . . . . . . . . 10 . . . . 2 . . . . . . . . . . . . . . . . Authchips 5 | . . . . . . . . . . . . . . . . . . . . . . . . . . . . . 5 . . . . . . . . . . . . . . . . . . . . . Time 337 | . . . . . . . . . . . . . . . . . . . . . . . . . . . . . 168 . . . . 169 . . . . . . . . . . . . . . . . Total Robot Build Rating 72 | . . . . . . . . . . . . . . . . . . . . . . . . . . . . . 60 . . . . 12 . . . . . . . . . . . . . . . . Part Schematics Acquired 59 | . . . . . . . 1 . . . 3 . . . 4 . 1 . . . 3 . . . . . 3 . 4 . . . . 14 . . . . 4 . 14 4 . . 3 1 . . . . Parts Built 12 | . . . . . . . . . . . . . . . . . . . 1 . . . . . . . 2 . 1 . . . . 2 . 1 . . . . 4 . . . . . . 1 . . Authchips . | . . . . . . . . . . . . . . . . . . . . . . . . . . . . . . . . . . . . . . . . . . . . . . . . . . . Time 866 | . . . . . . . . . . . . . . . . . . . 58 . . . . . . . 391 . 62 . . . . 155 . 46 . . . . 80 . . . . . . 74 . . Total Part Build Rating 84 | . . . . . . . . . . . . . . . . . . . 7 . . . . . . . 15 . 7 . . . . 14 . 7 . . . . 25 . . . . . . 9 . . Parts Repaired 31 | . . . . . . . . . 1 . . . 1 . 8 1 . . . . 3 . . . . . 4 . 2 . . . . 3 . . . . . . 1 3 . . 1 . . 2 1 . Time 1560 | . . . . . . . . . 136 . . . 44 . 362 56 . . . . 221 . . . . . 272 . 103 . . . . 149 . . . . . . 22 84 . . 33 . . 38 40 . Parts Recycled . | . . . . . . . . . . . . . . . . . . . . . . . . . . . . . . . . . . . . . . . . . . . . . . . . . . . Recycled Matter . | . . . . . . . . . . . . . . . . . . . . . . . . . . . . . . . . . . . . . . . . . . . . . . . . . . . Retrieved Matter . | . . . . . . . . . . . . . . . . . . . . . . . . . . . . . . . . . . . . . . . . . . . . . . . . . . . Retrieved Components 43 | . . . . . . . 1 . . . . . . . . 3 1 . . . . . . . . . 14 . 5 . . . . 14 . . . . . . 2 . . 1 . . . . 2 . Parts Scanalyzed 33 | . . . . . 1 . . . . . 4 . . . 5 . . . . . 2 . . . . . 2 . . . . . . 8 . . . . . . 7 2 . . 2 . . . . . Part Schematics Acquired 31 | . . . . . . . 1 . . . 3 . . . 4 . . . . . 2 . . . . . 2 . . . . . . 8 . . . . . . 7 2 . . 2 . . . . . Parts Damaged 8 | . . . . . . . 1 . . . . . . . . . . . . . 1 . . . . . 1 . . . . . . 4 . . . . . . 1 . . . . . . . . . Bothacking | -11 -10 -10 -10 -9 -8 -8 -8 -8 -8 -8 -8 -8 -8 -8 -8 -8 -8 -8 -6 -6 -6 -6 -6 -6 -6 -5 -5 -5 -5 -5 -5 -5 -4 -4 -4 -4 -4 -4 -4 -3 -3 -3 -3 -2 -2 -2 -2 -1 -1 -1 ------------ Run | Yrd Mat Min Exi Min Mat Gar Mat Gar Mat Gar Mat Gar Mat Gar Mat Sto Rec Scr Fac Gar Fac Low Low Zio Dee Pro Fac Was Fac Upp Upp War Pro Fac Was Fac Upp Upp Zhi Pro Res Qua Gar Res Tes Sec Gar Acc Com Ac0 Used RIF Installer . | . . . . . . . . . . . . . . . . . . . . . . . . . . . . . . . . . . . . . . . . . . . . . . . . . . . Robots Hacked 41 | . . . 4 . . . . . . . . . . . . . 3 7 . . 1 . 1 3 . . 11 . . . . 5 . 1 . . 1 . 2 . . . . 2 . . . . . . Non-combat 19 | . . . 3 . . . . . . . . . . . . . 1 . . . 1 . 1 1 . . 10 . . . . . . 1 . . . . . . . . . 1 . . . . . . Combat 22 | . . . 1 . . . . . . . . . . . . . 2 7 . . . . . 2 . . 1 . . . . 5 . . . . 1 . 2 . . . . 1 . . . . . . Robot Hacks Applied 41 | . . . 4 . . . . . . . . . . . . . 3 7 . . 1 . 1 3 . . 11 . . . . 5 . 1 . . 1 . 2 . . . . 2 . . . . . . parse_system 32 | . . . 4 . . . . . . . . . . . . . 3 7 . . . . 1 3 . . 3 . . . . 5 . 1 . . 1 . 2 . . . . 2 . . . . . . find_chute 7 | . . . . . . . . . . . . . . . . . . . . . . . . . . . 7 . . . . . . . . . . . . . . . . . . . . . . . find_recycling 2 | . . . . . . . . . . . . . . . . . . . . . 1 . . . . . 1 . . . . . . . . . . . . . . . . . . . . . . . Relay Couplers Released 57 | . . . . . . 4 . . . . . . . . . . . . . 21 1 . . . . . . . . . . . . . . . . . . . . . 16 . . . 15 . . . Machine Destruction 57 | . . . . . . 4 . . . . . . . . . . . . . 21 1 . . . . . . . . . . . . . . . . . . . . . 16 . . . 15 . . . Fabnet Peak Effective % . | . . . . . . . . . . . . . . . . . . . . . . . . . . . . . . . . . . . . . . . . . . . . . . . . . . . Robots Rewired 40 | . . . . . . 2 . 3 . . . . . . . 9 . . . 1 . 2 . . . . 1 . . . . 5 2 1 . . 1 . . . . . 3 . 2 . 8 . . . Allies Hacked 7 | . . . . . . . . . . . . . . . . . . . . . 1 . . . . . . . 2 . . 1 . 2 . . . . . . . . 1 . . . . . . . Hacks Repelled 2 | . . . . . . . . . . . . . . . . . . . . . . . . . . . . . . . . 1 . . . . . . . . . . 1 . . . . . . . Allies | -11 -10 -10 -10 -9 -8 -8 -8 -8 -8 -8 -8 -8 -8 -8 -8 -8 -8 -8 -6 -6 -6 -6 -6 -6 -6 -5 -5 -5 -5 -5 -5 -5 -4 -4 -4 -4 -4 -4 -4 -3 -3 -3 -3 -2 -2 -2 -2 -1 -1 -1 -------- Run | Yrd Mat Min Exi Min Mat Gar Mat Gar Mat Gar Mat Gar Mat Gar Mat Sto Rec Scr Fac Gar Fac Low Low Zio Dee Pro Fac Was Fac Upp Upp War Pro Fac Was Fac Upp Upp Zhi Pro Res Qua Gar Res Tes Sec Gar Acc Com Ac0 Total Allies 125 | . . . . . . 2 . 5 3 . 1 . 3 . 1 10 . . . 1 11 2 . 7 . . 5 . 15 . . 6 2 9 20 . 1 . . . 1 2 3 . 3 1 8 2 1 . Largest Group 20 | . . . . . . 2 1 5 3 3 2 2 3 3 1 11 11 11 11 1 3 2 2 9 9 4 3 . 10 10 9 13 5 6 20 20 1 1 . . 1 2 4 . 3 1 4 3 2 . Highest-Rated Group 753 | . . . . . . 56 31 122 42 42 25 25 42 42 10 183 183 183 183 148 97 52 52 218 218 102 108 . 507 507 447 646 264 258 753 753 47 47 . . 26 90 171 . 206 26 276 283 90 . Highest-Rated Ally 148 | . . . . . . 31 31 39 16 16 15 15 16 16 10 29 29 29 29 148 37 32 32 32 32 32 49 . 65 65 65 65 65 65 50 50 47 47 . . 26 45 51 . 90 26 119 119 45 . Total Orders 520 | . . . . . . 9 10 10 6 4 22 44 32 9 44 23 11 2 3 1 . 9 3 . 8 1 4 . 31 21 5 49 11 33 . . . . . . 4 12 20 . 10 11 27 26 5 . STAY 316 | . . . . . . 5 5 5 3 3 16 25 17 5 28 17 3 1 2 . . 5 2 . 2 1 3 . 19 19 3 26 7 20 . . . . . . 4 10 12 . 4 7 13 20 4 . ROAM 16 | . . . . . . . . . . . . 1 . . . . . . . 1 . . . . 1 . . . 1 . . . . . . . . . . . . . 4 . 2 . 6 . . . FOLLOW 160 | . . . . . . 4 5 5 3 1 6 18 15 4 16 6 6 1 1 . . 2 1 . 4 . 1 . 9 2 2 11 3 11 . . . . . . . 2 3 . 3 4 4 6 1 . GUARD 22 | . . . . . . . . . . . . . . . . . 1 . . . . . . . 1 . . . 2 . . 10 1 2 . . . . . . . . . . 1 . 4 . . . AID 2 | . . . . . . . . . . . . . . . . . 1 . . . . . . . . . . . . . . . . . . . . . . . . . 1 . . . . . . . EXPLORE 2 | . . . . . . . . . . . . . . . . . . . . . . 2 . . . . . . . . . . . . . . . . . . . . . . . . . . . . RETURN 2 | . . . . . . . . . . . . . . . . . . . . . . . . . . . . . . . . 2 . . . . . . . . . . . . . . . . . . Ally Attacks 774 | . . . . . . 13 15 51 2 6 . 1 . 15 . . 25 . 14 11 57 . . . 38 2 13 . 45 . 13 171 21 13 . 142 . 2 . . . . 21 . 17 . 53 13 . . Total Damage 25992 | . . . . . . 295 212 1082 13 77 . 10 . 182 . . 356 . 171 321 1586 . . . 903 17 542 . 1486 . 1006 4251 449 730 . 7206 . 39 . . . . 604 . 768 . 2564 1122 . . Kills 167 | . . . . . . 3 4 9 1 1 . . . 3 . . 2 . 1 1 8 . . . 5 . 1 . 16 . 4 26 1 2 . 55 . . . . . . 3 . 3 . 12 6 . . Allies Corrupted 5 | . . . . . . . . . . . . . . . . . . . . . . . . . . . 1 . . . . . . 1 . 2 . . . . . . . . . . . 1 . . Allies Melted 3 | . . . . . . . . . . . . . . . . . . . . . 1 . . . . . . . . . . 1 . . . . . . . . . . . . . . 1 . . . Intel | -11 -10 -10 -10 -9 -8 -8 -8 -8 -8 -8 -8 -8 -8 -8 -8 -8 -8 -8 -6 -6 -6 -6 -6 -6 -6 -5 -5 -5 -5 -5 -5 -5 -4 -4 -4 -4 -4 -4 -4 -3 -3 -3 -3 -2 -2 -2 -2 -1 -1 -1 ------- Run | Yrd Mat Min Exi Min Mat Gar Mat Gar Mat Gar Mat Gar Mat Gar Mat Sto Rec Scr Fac Gar Fac Low Low Zio Dee Pro Fac Was Fac Upp Upp War Pro Fac Was Fac Upp Upp Zhi Pro Res Qua Gar Res Tes Sec Gar Acc Com Ac0 Robot Analysis Total 47 | . 1 . . 1 3 . . . 5 . . . . . 4 1 . . . . . . . . . . . . 1 . . . . 16 . 1 . . 3 . 2 3 2 1 2 . . . 1 . Derelict Logs Recovered 17 | . . 1 . 1 . . . . . . . . . . . . . . . . . 2 1 1 . 2 . . . 3 1 . 1 . . . 2 2 . . . . . . . . . . . . Drone Launches 4 | . . . . . . . . . . . . . . . . . . . . . . 2 . . . . . . . . . 2 . . . . . . . . . . . . . . . . . . Drone Recoveries 1 | . . . . . . . . . . . . . . . . . . . . . . . . . . . . . . . . 1 . . . . . . . . . . . . . . . . . . Exploration | -11 -10 -10 -10 -9 -8 -8 -8 -8 -8 -8 -8 -8 -8 -8 -8 -8 -8 -8 -6 -6 -6 -6 -6 -6 -6 -5 -5 -5 -5 -5 -5 -5 -4 -4 -4 -4 -4 -4 -4 -3 -3 -3 -3 -2 -2 -2 -2 -1 -1 -1 ------------- Run | Yrd Mat Min Exi Min Mat Gar Mat Gar Mat Gar Mat Gar Mat Gar Mat Sto Rec Scr Fac Gar Fac Low Low Zio Dee Pro Fac Was Fac Upp Upp War Pro Fac Was Fac Upp Upp Zhi Pro Res Qua Gar Res Tes Sec Gar Acc Com Ac0 Turns Passed 99998 | 121 803 1406 680 329 802 1536 2482 1451 1967 123 3689 1804 3524 1156 7165 4687 1395 1609 837 2930 2180 4259 2662 955 3959 3133 2714 131 2405 1063 1830 1069 3338 2894 545 470 1703 1594 362 1837 3022 1268 1245 832 1052 1132 1219 1209 4187 5233 Spaces Moved 110088 | 49 330 760 415 125 383 619 802 717 757 63 1313 986 1398 526 2602 1909 802 964 349 1224 4250 3430 3040 1604 1964 3167 5916 338 5030 2296 2916 2029 3959 5642 708 964 2594 2614 706 3813 4787 2319 1563 1954 1597 2481 1751 2617 11673 5273 Core 7 | 3 . . . . . . . . . . . . . . . . . . . 4 . . . . . . . . . . . . . . . . . . . . . . . . . . . . . . Treads 15993 | 46 272 760 415 125 227 619 519 717 757 63 1313 986 1398 526 2602 1909 802 964 349 624 . . . . . . . . . . . . . . . . . . . . . . . . . . . . . . Legs 327 | . . . . . . . . . . . . . . . . . . . . 327 . . . . . . . . . . . . . . . . . . . . . . . . . . . . . . Wheels 1142 | . 58 . . . 156 . 283 . . . . . . . . . . . . 269 18 358 . . . . . . . . . . . . . . . . . . . . . . . . . . . . Hover 581 | . . . . . . . . . . . . . . . . . . . . . . . . . . . . . . . . . . . . . . . . . 581 . . . . . . . . . Flight 91859 | . . . . . . . . . . . . . . . . . . . . . 4232 3072 3040 1604 1964 3167 5916 338 5030 2296 2916 2029 3959 5642 708 964 2594 2614 706 3813 4206 2319 1563 1954 1597 2345 1708 2617 11673 5273 Fastest Speed 7 | 50 110 160 160 160 95 163 145 166 163 163 163 160 160 165 160 165 165 165 163 118 21 23 23 23 23 23 23 29 29 29 29 29 29 28 28 28 28 24 24 28 23 27 27 20 12 12 22 18 7 7 Average Speed 51 | 153 151 160 160 205 139 204 166 166 168 163 170 162 162 165 166 165 165 165 164 152 27 57 50 44 68 45 27 29 32 31 37 29 37 31 30 29 29 29 33 28 31 27 27 21 24 22 22 20 19 18 Slowest Speed 500 | 160 240 240 160 240 163 243 245 166 246 163 243 163 165 165 330 165 165 165 165 500 155 200 99 99 176 99 110 29 114 106 106 29 106 114 112 32 108 111 108 108 120 27 107 22 97 97 91 91 96 83 Overloaded Moves 201 | . . . . . . . . . . . . . . . . . . . . . 66 . . . . . 10 . . . . . . . . . . 3 1 . . . . . 11 10 . . 54 46 Propulsion Burnouts . | . . . . . . . . . . . . . . . . . . . . . . . . . . . . . . . . . . . . . . . . . . . . . . . . . . . Robots Hopped 229 | . . . . . . . . . . . . . . . . . . . . . 22 . . . . . 47 . 23 . . 8 . 21 . 5 . 1 . . 22 22 . 2 4 6 3 18 20 5 Cave-ins Triggered . | . . . . . . . . . . . . . . . . . . . . . . . . . . . . . . . . . . . . . . . . . . . . . . . . . . . Teleports 4 | . . . . . . . . . . . . . . . . . . . . . . . . . . . . . . . . . . . . . . . 1 . . 1 . . . . . . 1 1 Microwarps 9 | . . . . . . . . . . . . . . . . . . . . . . . . . . . . . . . . . . . . . . . . . . . . . . 7 2 . . . Time Travels 1 | . . . . 1 . . . . . . . . . . . . . . . . . . . . . . . . . . . . . . . . . . . . . . . . . . . . . . Exploration Rate (%) 72 | 5 50 98 87 17 31 83 57 74 67 6 47 80 61 51 81 83 97 59 8 90 74 99 99 86 76 95 79 95 57 99 99 91 99 67 95 21 99 99 95 99 58 90 85 39 93 66 72 30 96 98 Regions Visited 50 Branch Regions 24 Pre-discovered Areas 15 | . 1 1 . . . . . . . . . . . . . . 3 . . . . 1 . 3 . . . . . . . . 1 . . . . 1 3 1 . . . . . . . . . . Known Exits Taken 31 | . . . . 1 1 . 1 . 1 . 1 . 1 . 1 . . 1 1 . 1 1 1 1 1 1 . . 1 1 1 1 1 . . 1 1 1 1 1 1 1 . 1 1 1 . 1 . . Unknown Exits Taken 7 | 1 1 1 1 . . . . . . . . . . . . 1 1 . . . . . . . . . . . . . . . . . . . . . . . . . . . . . . . 1 . Scrap Searched 39 | . . 1 . . . . . . . . . . . . . . . 2 . . . 4 7 3 . 3 . . . 3 3 . 5 . . . 2 3 . 3 . . . . . . . . . . Spaces Dug 780 | . . . . . 1 8 23 22 11 . 16 . 11 4 30 14 . . 4 9 58 65 9 2 19 24 67 . 44 10 17 3 13 62 . 3 10 9 . 9 98 13 6 12 17 9 3 20 16 9 Terrain Destroyed 6480 | . . 34 . 17 1 28 23 158 51 1 81 64 65 137 39 101 . . 7 162 335 79 15 2 19 54 356 1 607 27 81 183 83 140 . 118 95 218 . 467 115 13 507 25 17 132 662 20 958 182 Melee 429 | . . . . . . . . . . . . . . . . . . . . . 41 15 4 . 14 10 63 . 38 8 5 2 6 58 . 3 3 8 . 7 72 13 . 8 7 9 1 13 14 7 Projectile 423 | . . . . . 1 . 23 . 11 . 19 1 16 7 35 13 . . 7 15 20 38 8 2 5 21 4 1 7 2 13 6 64 4 . . 8 1 . 2 26 . 9 4 10 . 2 7 2 9 AOE 5592 | . . 34 . 17 . 28 . 158 40 . 61 62 48 130 . 82 . . . 146 274 26 . . . 23 289 . 562 17 58 175 12 77 . 115 77 207 . 458 16 . 498 13 . 123 659 . 941 166 Terrain Rammed . | . . . . . . . . . . . . . . . . . . . . . . . . . . . . . . . . . . . . . . . . . . . . . . . . . . . Walls Destroyed . | . . . . . . . . . . . . . . . . . . . . . . . . . . . . . . . . . . . . . . . . . . . . . . . . . . . Machines Disabled . | . . . . . . . . . . . . . . . . . . . . . . . . . . . . . . . . . . . . . . . . . . . . . . . . . . . Actions | -11 -10 -10 -10 -9 -8 -8 -8 -8 -8 -8 -8 -8 -8 -8 -8 -8 -8 -8 -6 -6 -6 -6 -6 -6 -6 -5 -5 -5 -5 -5 -5 -5 -4 -4 -4 -4 -4 -4 -4 -3 -3 -3 -3 -2 -2 -2 -2 -1 -1 -1 --------- Run | Yrd Mat Min Exi Min Mat Gar Mat Gar Mat Gar Mat Gar Mat Gar Mat Sto Rec Scr Fac Gar Fac Low Low Zio Dee Pro Fac Was Fac Upp Upp War Pro Fac Was Fac Upp Upp Zhi Pro Res Qua Gar Res Tes Sec Gar Acc Com Ac0 Total 147024 | 78 491 872 429 170 574 795 1840 885 1323 72 2598 1115 2492 729 5210 3131 862 981 507 2036 4984 5579 4069 1839 4509 4763 6745 362 5593 2584 3538 2424 5639 6466 1006 1097 3413 3385 801 4470 5978 2835 2292 2287 2210 2863 2425 3204 13081 9393 Wait 28555 | . 49 40 . 26 74 65 897 44 430 . 1090 57 963 126 2380 923 34 5 51 532 289 1918 879 198 2431 1448 452 4 221 200 478 211 1413 314 247 51 669 647 43 499 777 378 600 209 471 287 478 499 677 3781 Move 109446 | 48 329 759 414 124 383 616 801 714 756 62 1312 983 1397 525 2601 1908 801 963 348 1223 4205 3429 3039 1603 1963 3166 5827 337 4987 2295 2915 2018 3958 5603 708 953 2593 2611 705 3812 4743 2276 1561 1949 1588 2339 1704 2587 11642 5263 Hop 189 | . . . . . . . . . . . . . . . . . . . . . 22 . . . . . 42 . 19 . . 2 . 18 . 5 . 1 . . 21 20 . 2 4 6 2 11 10 4 Pick Up 775 | 12 15 10 3 1 12 . 6 5 5 . 14 1 4 1 9 10 5 1 3 15 24 23 10 5 13 14 34 1 32 14 9 17 23 39 3 5 15 17 6 15 45 15 7 19 15 37 24 13 114 35 Fast Attach 263 | . . 1 . . 12 2 7 2 3 . 3 1 1 1 8 1 . . 6 11 11 5 2 6 6 6 15 4 12 2 5 13 3 8 2 2 . 3 4 6 12 12 3 8 23 3 5 4 5 14 Attach 458 | 7 3 . 1 2 4 . . 1 1 . 1 . . . 3 1 . . 2 11 28 16 1 1 6 2 31 1 38 3 8 18 3 29 2 3 4 17 2 16 28 7 9 10 10 38 25 9 41 15 Detach 181 | . 1 . . . 3 . 1 . . . . . . . . 1 . . 2 1 16 10 1 . 2 . 14 . 15 2 . 6 . 12 1 1 . 2 . 11 7 5 4 6 7 24 5 4 10 7 Swap 1186 | . 8 10 4 2 17 11 25 22 27 . 41 10 9 15 24 24 1 4 23 43 53 36 20 9 12 30 30 3 50 8 13 7 41 94 6 13 13 8 13 6 89 53 24 20 15 55 20 28 71 26 Drop 905 | 1 7 10 3 . 24 7 15 9 11 . 17 4 6 2 9 10 5 1 5 14 33 15 11 11 19 19 39 5 36 17 14 31 25 44 5 8 15 20 6 21 39 25 9 25 38 27 28 14 117 29 Fire 2865 | 10 79 42 . 15 45 83 88 74 90 10 120 59 112 59 173 142 13 . 67 164 89 96 92 2 7 62 31 7 55 11 83 74 155 28 32 15 86 47 7 71 59 2 53 5 10 12 66 7 149 7 Melee 1469 | . . . 4 . . . . . . . . . . . . . 3 7 . . 83 22 8 4 43 14 132 . 93 28 13 27 14 129 . 17 18 12 15 11 154 42 11 34 21 34 26 28 219 203 Ram . | . . . . . . . . . . . . . . . . . . . . . . . . . . . . . . . . . . . . . . . . . . . . . . . . . . . Kick . | . . . . . . . . . . . . . . . . . . . . . . . . . . . . . . . . . . . . . . . . . . . . . . . . . . . Crush . | . . . . . . . . . . . . . . . . . . . . . . . . . . . . . . . . . . . . . . . . . . . . . . . . . . . Escape Stasis 120 | . . . . . . 3 . 2 . . . . . . . . . . . . 31 . . . . . 48 . . . . . . . . 18 . . . . . . . . . . 18 . . . Rewire 145 | . . . . . . 8 . 12 . . . . . . . 55 . . . 22 . 3 . . . . . . . . . . . . . . . . . . . . 11 . 8 . 24 . 2 . Trap 411 | . . . . . . . . . . . . . . . 3 . . . . . 100 6 6 . 7 2 50 . 35 4 . . 4 148 . 6 . . . 2 4 . . . . 1 . . 24 9 Miscellaneous 56 | . . . . . . . . . . . . . . . . 56 . . . . . . . . . . . . . . . . . . . . . . . . . . . . . . . . . . Route ------- -11/Scrapyard -10/Materials -10/Mines (discovered 3 exits: [*Mat x2] / *Exi) -10/Exiles -9/Mines (discovered 2 exits: *Mat x2) -8/Materials (discovered 2 exits: Fac / Gar) -8/Garrison (discovered 3 exits: *Mat x3) -8/Materials (discovered 3 exits: *Fac x2 / Gar) -8/Garrison (discovered 3 exits: *Mat x3) -8/Materials (discovered 5 exits: *Fac x3 / *Sto / Gar) -8/Garrison -8/Materials (discovered 4 exits: *Fac / Sto x2 / Gar) -8/Garrison (discovered 3 exits: *Mat x3) -8/Materials (discovered 2 exits: Fac / Gar) -8/Garrison -8/Materials (discovered 3 exits: *Fac x2 / *Sto) -8/Storage (discovered 2 exits: *Fac / *Rec) -8/Recycling (discovered 2 exits: *Fac / *Scr) -8/Scraptown -6/Factory (discovered 2 exits: *Low / Gar) -6/Garrison (discovered 3 exits: *Fac x3) -6/Factory (discovered 6 exits: *Fac x4 / *Low x2) -6/Lower Caves -6/Lower Caves (discovered 2 exits: *Fac / *Zio) -6/Zion (discovered 2 exits: *Dee / [*Pro]) -6/Deep Caves -5/Proximity Caves -5/Factory (discovered 6 exits: *Fac x4 / *Upp x2) -5/Waste -5/Factory (discovered 3 exits: *Fac / *Upp x2) -5/Upper Caves -5/Upper Caves (discovered 2 exits: *Fac / *War) -5/Warlord -4/Proximity Caves -4/Factory (discovered 4 exits: *Res x3 / *Upp) -4/Waste -4/Factory (discovered 3 exits: *Res / *Upp x2) -4/Upper Caves -4/Upper Caves (discovered 2 exits: *Res / *Zhi) -4/Zhirov -3/Proximity Caves -3/Research (discovered 4 exits: Res / Arm / *Qua x2) -3/Quarantine (discovered 2 exits: *Res / Gar) -3/Garrison (discovered 3 exits: *Res x3) -2/Research (discovered 5 exits: *Acc x3 / *Tes x2) -2/Testing (discovered 2 exits: *Acc / *Sec) -2/Section 7 (discovered 2 exits: *Acc / Gar) -2/Garrison (discovered 3 exits: *Acc x3) -1/Access -1/Command (discovered 3 exits: *Sur x2 / *Ac0) -1/Access_0 0b11 Command History --------- Turn | Location | Event 28 | -11/Scrapyard | Discovered new exit (range 15) 122 | -11/Scrapyard | Entered Materials 129 | -10/Materials | Central database locked down 318 | -10/Materials | Build established: Mutant 679 | -10/Materials | Discovered new exit (range 13) 802 | -10/Materials | Core integrity fell below 50% 925 | -10/Materials | Entered Mines 1012 | -10/Mines | Received a Rocket Launcher from a helpful Derelict 1293 | -10/Mines | Discovered new exit (range 9) 1325 | -10/Mines | Learned location of Storage (-8) 1470 | -10/Mines | Deemed a non-threat by the Exiles lab entrance 1470 | -10/Mines | Discovered new exit (range 5) 1517 | -10/Mines | Build established: Scavenger-Mutant 1525 | -10/Mines | Met a Derelict testing a Signal Generator 1531 | -10/Mines | Found Signal Generator 1885 | -10/Mines | Learned location of 1 exit from Materials 1993 | -10/Mines | Discovered new exit (range 5) 2018 | -10/Mines | Core integrity fell below 20% 2043 | -10/Mines | Met a Derelict shopkeep closing up shop 2331 | -10/Mines | Entered Exiles 2370 | -10/Exiles | Met 8R-AWN 2400 | -10/Exiles | Met EX-HEX 2502 | -10/Exiles | Visited The Gauntlet 2602 | -10/Exiles | Met EX-DEC 2675 | -10/Exiles | Met EX-BIN 2793 | -10/Exiles | Aligned with FarCom system 2795 | -10/Exiles | Given EX-Vault access code 2832 | -10/Exiles | Opened EX-Vault 2842 | -10/Exiles | Found Cloak of Protection 2848 | -10/Exiles | Found Chronowheel 2855 | -10/Exiles | Found Latent Energy Streamer 2895 | -10/Exiles | Warned to stay clear of 0b10 Research branches 2907 | -10/Exiles | Exiles lab attacked by MAIN.C 2994 | -10/Exiles | Discovered new exit (range 14) 3011 | -10/Exiles | Stole three prototypes: Cloak of Protection, Chronowheel, Latent Energy Streamer 3011 | -10/Exiles | Entered Mines 3019 | -9/Mines | Identified exit to Materials 3164 | -9/Mines | Discovered exit to Materials (range 4) 3191 | -9/Mines | Activated Chronowheel 3191 | -9/Mines | Spacetime reconverged on an earlier point 3267 | -9/Mines | Found a damaged Exp. Sensor Array with a note attached 3272 | -9/Mines | Found Prototype Device 3340 | -9/Mines | Entered Materials 3340 | -8/Materials | Evolved 4 slots: Propulsion x1, Utility x3 3341 | -8/Materials | Identified exit to Factory 3423 | -8/Materials | Identified Exp. Sensor Array 3801 | -8/Materials | Build established: Scavenger-Skirmisher 3925 | -8/Materials | Found Prototype Launcher 3925 | -8/Materials | Identified Rocket Array 4135 | -8/Materials | Identified exit to Garrison 4142 | -8/Materials | Entered Garrison 4289 | -8/Garrison | Triggered checkpoint 4521 | -8/Garrison | Triggered checkpoint 4553 | -8/Garrison | Discovered new exit (range 15) 4576 | -8/Garrison | Attempted to access garrison exit controls, blocked by remote lockdown 4637 | -8/Garrison | Triggered checkpoint 4670 | -8/Garrison | Destroyed 7 combat bots 4827 | -8/Garrison | Discovered new exit (range 10) 4936 | -8/Garrison | Build established: Mutant 5014 | -8/Garrison | Triggered checkpoint 5099 | -8/Garrison | Garrison Relay disabled 5295 | -8/Garrison | Attempted to access garrison exit controls, blocked by remote lockdown 5385 | -8/Garrison | Triggered checkpoint 5583 | -8/Garrison | Discovered new exit (range 11) 5678 | -8/Garrison | Entered Materials 5678 | -8/Materials | Accompanied by 1 ally 6082 | -8/Materials | Discovered exit to Factory (range 7) 6404 | -8/Materials | Build established: Skirmisher 6700 | -8/Materials | Garrison activated, responded to threat 6808 | -8/Materials | Build established: Scavenger-Skirmisher 6921 | -8/Materials | Discovered exit to Factory (range 16) 7120 | -8/Materials | Build established: Skirmisher 7137 | -8/Materials | Identified exit to Garrison 8160 | -8/Materials | Entered Garrison 8370 | -8/Garrison | Triggered checkpoint 8384 | -8/Garrison | Triggered checkpoint 8488 | -8/Garrison | Triggered checkpoint 8603 | -8/Garrison | Triggered checkpoint 8630 | -8/Garrison | Triggered checkpoint 8681 | -8/Garrison | Build established: Mutant 8887 | -8/Garrison | Phase Generator disabled 8960 | -8/Garrison | Triggered checkpoint 9029 | -8/Garrison | Discovered new exit (range 52) 9029 | -8/Garrison | Discovered new exit (range 46) 9029 | -8/Garrison | Discovered new exit (range 66) 9146 | -8/Garrison | Rescued a captive Derelict 9148 | -8/Garrison | Rescued a captive Derelict 9222 | -8/Garrison | Lost 5 allies 9317 | -8/Garrison | Attempted to access garrison exit controls, blocked by remote lockdown 9456 | -8/Garrison | Attempted to access garrison exit controls, blocked by remote lockdown 9512 | -8/Garrison | Triggered checkpoint 9514 | -8/Garrison | Build established: Skirmisher 9611 | -8/Garrison | Entered Materials 9809 | -8/Materials | Discovered new exit (range 11) 9937 | -8/Materials | Discovered exit to Factory (range 12) 10147 | -8/Materials | Garrison activated, responded to threat 10565 | -8/Materials | Identified exit to Garrison 10830 | -8/Materials | Central database locked down 11302 | -8/Materials | Build established: Mutant 11392 | -8/Materials | Repaired Broken Exp. Sensor Array 11550 | -8/Materials | Garrison activated, responded to threat 11578 | -8/Materials | Entered Garrison 11578 | -8/Garrison | Accompanied by 3 allies 11582 | -8/Garrison | Triggered checkpoint 11616 | -8/Garrison | Discovered new exit (range 6) 11701 | -8/Garrison | Entered Materials 11701 | -8/Materials | Accompanied by 1 ally 11879 | -8/Materials | Garrison activated, responded to threat 13075 | -8/Materials | Build established: Skirmisher 14220 | -8/Materials | Identified exit to Storage 14363 | -8/Materials | Discovered exit to Factory (range 15) 14969 | -8/Materials | Identified exit to Garrison 15388 | -8/Materials | Garrison activated, responded to threat 15390 | -8/Materials | Entered Garrison 15390 | -8/Garrison | Accompanied by 2 allies 15474 | -8/Garrison | Triggered checkpoint 15566 | -8/Garrison | Triggered checkpoint 15690 | -8/Garrison | Build established: Mutant 15869 | -8/Garrison | Discovered new exit (range 15) 15895 | -8/Garrison | Attempted to access garrison exit controls, blocked by remote lockdown 16289 | -8/Garrison | Discovered new exit (range 11) 16446 | -8/Garrison | Attempted to access garrison exit controls, blocked by remote lockdown 16628 | -8/Garrison | Triggered checkpoint 16780 | -8/Garrison | Triggered checkpoint 16981 | -8/Garrison | Triggered checkpoint 17162 | -8/Garrison | Triggered checkpoint 17179 | -8/Garrison | Discovered new exit (range 10) 17194 | -8/Garrison | Entered Materials 17194 | -8/Materials | Accompanied by 1 ally 18341 | -8/Materials | Core integrity fell below 50% 18678 | -8/Materials | Build established: Skirmisher 19894 | -8/Materials | Discovered exit to Factory (range 10) 20517 | -8/Materials | Repaired Med. Reactive Plating 20561 | -8/Materials | Central database locked down 20687 | -8/Materials | Identified exit to Garrison 20718 | -8/Materials | Entered Garrison 20718 | -8/Garrison | Accompanied by 3 allies 20802 | -8/Garrison | Triggered checkpoint 20840 | -8/Garrison | Triggered checkpoint 20874 | -8/Garrison | Triggered checkpoint 21219 | -8/Garrison | Discovered new exit (range 10) 21390 | -8/Garrison | Triggered checkpoint 21400 | -8/Garrison | Build established: Mutant 21432 | -8/Garrison | Spotted B-75 Beast 21821 | -8/Garrison | Phase Generator disabled 21874 | -8/Garrison | Entered Materials 21874 | -8/Materials | Accompanied by 1 ally 22191 | -8/Materials | Build established: Skirmisher 22747 | -8/Materials | Build established: Mutant 23196 | -8/Materials | Build established: Skirmisher 23544 | -8/Materials | Discovered exit to Storage (range 3) 23663 | -8/Materials | Discovered exit to Factory (range 14) 25178 | -8/Materials | Repaired Enh. Autogun 25222 | -8/Materials | Repaired Med. Reactive Plating? 25344 | -8/Materials | Repaired Hvy. Treads? 25442 | -8/Materials | Repaired Arm. Treads 25486 | -8/Materials | Repaired Imp. Shield Generator? 25606 | -8/Materials | Repaired Imp. Terrain Scanner 25839 | -8/Materials | Repaired Nuclear Core 25884 | -8/Materials | Repaired Gauss Rifle 26392 | -8/Materials | Discovered exit to Factory (range 15) 29039 | -8/Materials | Entered Storage 29039 | -8/Storage | Accompanied by 1 ally 30680 | -8/Storage | Discovered new exit (range 12) 30968 | -8/Storage | Used back door to open Recycling access 31167 | -8/Storage | Repaired Hvy. Treads 31220 | -8/Storage | Build established: Mutant 31919 | -8/Storage | Discovered exit to Factory (range 8) 32126 | -8/Storage | Build established: Skirmisher 33346 | -8/Storage | Assisted by bots powering up and referring to "LRC-V3" 33604 | -8/Storage | Build established: Commander-Skirmisher 33726 | -8/Storage | Entered Recycling 33726 | -8/Recycling | Accompanied by 11 allies 34249 | -8/Recycling | Identified exit to Factory 35044 | -8/Recycling | Scanned before Scraplab entrance 35084 | -8/Recycling | Discovered new exit (range 3) 35103 | -8/Recycling | Entered Scraplab 35121 | -8/Recycling | Entered Scraptown 35121 | -8/Scraptown | Accompanied by 11 allies 35412 | -8/Scraptown | Build established: Commander-Mutant 35602 | -8/Scraptown | Heard Great Nut preacher, LISTEN AND RECITE! 35618 | -8/Scraptown | Visited Assassins FH 35689 | -8/Scraptown | Discovered exit to Factory (range 11) 35793 | -8/Scraptown | Build established: Commander-Assassin 35861 | -8/Scraptown | Visited Junk Repository 35874 | -8/Scraptown | Visited Fellowship of the Rings 35923 | -8/Scraptown | Turned away by UFD registrar 35923 | -8/Scraptown | Turned away by UFD registrar 35935 | -8/Scraptown | Visited Bundlers 36012 | -8/Scraptown | Visited Cave Peace 36087 | -8/Scraptown | Visited Comm Corps 36346 | -8/Scraptown | Visited Symbiants 36690 | -8/Scraptown | Build established: Commander-Mutant 36730 | -8/Scraptown | Entered Factory 36730 | -6/Factory | Accompanied by 11 allies 36730 | -6/Factory | Evolved 4 slots: Power x1, Propulsion x2, Utility x1 36732 | -6/Factory | FarCom data flow suspended 36863 | -6/Factory | Discovered new exit (range 13) 36883 | -6/Factory | Identified exit to Lower Caves 36921 | -6/Factory | Lost 5 allies 36999 | -6/Factory | Fabricated Imp. Heavy Treads? 37038 | -6/Factory | Build established: Commander-Skirmisher 37181 | -6/Factory | Garrison activated, responded to threat 37249 | -6/Factory | Lost 6 allies 37463 | -6/Factory | Build established: Mutant 37559 | -6/Factory | Identified exit to Garrison 37567 | -6/Factory | Entered Garrison 37613 | -6/Garrison | Triggered checkpoint 37683 | -6/Garrison | Garrison Relay disabled 37692 | -6/Garrison | Garrison Relay disabled 37934 | -6/Garrison | Phase Generator disabled 38257 | -6/Garrison | Triggered checkpoint 38831 | -6/Garrison | Build established: Scavenger-Mutant 38831 | -6/Garrison | Discovered new exit (range 11) 38844 | -6/Garrison | Identified exit to Factory 38911 | -6/Garrison | Rewired B-90 Cyclops 39170 | -6/Garrison | Lost 13 parts (2p5n2u4w) 39377 | -6/Garrison | Triggered checkpoint 39381 | -6/Garrison | Garrison Relay disabled 39465 | -6/Garrison | Triggered checkpoint 39665 | -6/Garrison | Discovered exit to Factory (range 11) 40383 | -6/Garrison | Discovered exit to Factory (range 9) 40497 | -6/Garrison | Entered Factory 40587 | -6/Factory | Discovered new exit (range 9) 40589 | -6/Factory | Identified exit to Factory 40589 | -6/Factory | Discovered exit to Lower Caves (range 8) 40640 | -6/Factory | Allied Derelicts emerged from ambush trap array 40729 | -6/Factory | Lost 3 allies 40771 | -6/Factory | Repaired Imp. Datajack? 40847 | -6/Factory | First assault squad dispatched 41269 | -6/Factory | Build established: Scout 41277 | -6/Factory | Discovered exit to Factory (range 15) 41371 | -6/Factory | Discovered exit to Lower Caves (range 19) 41443 | -6/Factory | Discovered exit to Factory (range 9) 41688 | -6/Factory | Repaired Broken Adv. Phase Shifter? 42095 | -6/Factory | Repaired Cld. Cesium-ion Thruster 42124 | -6/Factory | Discovered exit to Factory (range 15) 42228 | -6/Factory | Spotted B-75 Beast 42229 | -6/Factory | Core integrity fell below 50% 42400 | -6/Factory | Build established: Sprinter 42574 | -6/Factory | High security lockdown imminent 42654 | -6/Factory | High security lockdown engaged 42677 | -6/Factory | Entered Lower Caves 42683 | -6/Lower Caves | Met a Warlord Commander 42684 | -6/Lower Caves | Learned location of Warlord (-5) 42685 | -6/Lower Caves | Warlord Commander delivered Encrypted Comm Array 42702 | -6/Lower Caves | Found Encrypted Comm Array 42901 | -6/Lower Caves | Encountered a Warlord checkpoint 42986 | -6/Lower Caves | Attracted the attention of an 0b10 outpost 43004 | -6/Lower Caves | Attacked by a delusional Derelict stockpiling parts 43017 | -6/Lower Caves | Learned 8 Factory zone layouts 43022 | -6/Lower Caves | Identified exit to Lower Caves 43916 | -6/Lower Caves | Build established: Scavenger-Mutant 44867 | -6/Lower Caves | Build established: Mutant 46487 | -6/Lower Caves | Build established: Sprinter 46936 | -6/Lower Caves | Entered another Lower Caves area 46936 | -6/Lower Caves | Accompanied by 2 allies 46994 | -6/Lower Caves | Discovered exit to Factory (range 2) 47021 | -6/Lower Caves | Encountered a Warlord checkpoint 47240 | -6/Lower Caves | Build established: Scout 47360 | -6/Lower Caves | Found Alien Artifact 47360 | -6/Lower Caves | Identified Core Expander 47360 | -6/Lower Caves | Installed Core Expander, added new Power slot 47367 | -6/Lower Caves | Discovered new exit (range 9) 47396 | -6/Lower Caves | Identified exit to Zion 47975 | -6/Lower Caves | Build established: Trapper-Mutant 48307 | -6/Lower Caves | Build established: Mutant 49335 | -6/Lower Caves | Learned 4 Factory zone layouts 49339 | -6/Lower Caves | Learned Research security intel 49339 | -6/Lower Caves | Learned Factory stockpile data 49339 | -6/Lower Caves | Learned location of 2 exits from Lower Caves 49598 | -6/Lower Caves | Entered Zion 49598 | -6/Zion | Accompanied by 2 allies 49606 | -6/Zion | System corruption cleaned by Quarantine Array 49621 | -6/Zion | Discovered new exit (range 16) 49636 | -6/Zion | Build established: Scout 49644 | -6/Zion | Learned Factory emergency access door positions 49647 | -6/Zion | Received a visual enhancement algorithm 49652 | -6/Zion | Gained Derelict followers 49702 | -6/Zion | Met Imprinter 49781 | -6/Zion | Found Prototype Device 49858 | -6/Zion | Gained Derelict followers 49894 | -6/Zion | Identified Phasing AFG 50288 | -6/Zion | Build established: Mutant 50485 | -6/Zion | Discovered new exit (range 5) 50486 | -6/Zion | Saw the warning signs outside the Deep Caves entrance 50488 | -6/Zion | Identified exit to Deep Caves 50553 | -6/Zion | Entered Deep Caves 50553 | -6/Deep Caves | Accompanied by 9 allies 50810 | -6/Deep Caves | Attacked by Z-Imprinter 50832 | -6/Deep Caves | Destroyed Z-Imprinter 50852 | -6/Deep Caves | Found Prototype Protection 50852 | -6/Deep Caves | Identified Zio. Weapon Casing 50876 | -6/Deep Caves | Lost 4 allies 50994 | -6/Deep Caves | Build established: Sprinter 51080 | -6/Deep Caves | Z-Facility disabled 51341 | -6/Deep Caves | Build established: Mutant 52185 | -6/Deep Caves | Discovered new exit (range 6) 52437 | -6/Deep Caves | Build established: Assassin 54498 | -6/Deep Caves | Identified exit to Proximity Caves 54512 | -6/Deep Caves | Entered Proximity Caves 54512 | -5/Proximity Caves | Accompanied by 4 allies 54838 | -5/Proximity Caves | Build established: Scout 55009 | -5/Proximity Caves | Learned Factory emergency access door positions 55861 | -5/Proximity Caves | Build established: Assassin 57645 | -5/Proximity Caves | Entered Factory 57645 | -5/Factory | Evolved 2 slots: Utility x2 57646 | -5/Factory | Identified exit to Factory 57647 | -5/Factory | Identified exit to Upper Caves 57728 | -5/Factory | Discovered exit to Factory (range 10) 58017 | -5/Factory | Repaired Imp. Utility Shielding? 58073 | -5/Factory | Discovered exit to Upper Caves (range 11) 58115 | -5/Factory | Repaired Lgt. Fission Core 58718 | -5/Factory | Cargo convoy interrupted 58750 | -5/Factory | Found PL-3XN's Ring of Power 58752 | -5/Factory | Found Corrupted Prototype Hackware 58754 | -5/Factory | Found Prototype Processor 58754 | -5/Factory | Identified Exp. Target Analyzer 58797 | -5/Factory | Build established: Hacker-Scout 58878 | -5/Factory | Repaired Imp. VTOL Module? 58910 | -5/Factory | Identified Exp. Hacking Suite 59005 | -5/Factory | Fabricated Exp. Sensor Array (x1) 59145 | -5/Factory | First assault squad dispatched 59169 | -5/Factory | Fabricated Exp. Hacking Suite (x1) 59308 | -5/Factory | Repaired Corrupted Exp. Hacking Suite 60359 | -5/Factory | Manually triggered Chute Trap 60359 | -5/Factory | Sucked down chute 60359 | -5/Factory | Entered Waste 60359 | -5/Waste | The area was eerily silent 60442 | -5/Waste | Discovered new exit (range 12) 60452 | -5/Waste | Found Prototype Reactor 60452 | -5/Waste | Identified Singularity Reactor 60490 | -5/Waste | Identified exit to Factory 60490 | -5/Waste | Entered Factory 60598 | -5/Factory | Discovered exit to Upper Caves (range 16) 60844 | -5/Factory | Repaired Broken Hyp. Railgun? 60934 | -5/Factory | Central database locked down 60953 | -5/Factory | Repaired Mic. Fission Core 61013 | -5/Factory | Build established: Hacker-Sprinter 61090 | -5/Factory | First assault squad dispatched 61305 | -5/Factory | Fabricated Exp. Hacking Suite (x1) 61480 | -5/Factory | Discovered exit to Factory (range 16) 62127 | -5/Factory | Fabricated P-70 Sage (x2) 62273 | -5/Factory | Fabricated P-70 Sage (x2) 62306 | -5/Factory | Fabricated P-70 Sage (x2) 62341 | -5/Factory | Fabricated P-70 Sage (x2) 62398 | -5/Factory | Sage 6e assimilated hostile I-47 Archangel 62558 | -5/Factory | Fabricated P-70 Sage (x2) 62719 | -5/Factory | Build established: Commander-Scout 62895 | -5/Factory | Entered Upper Caves 62895 | -5/Upper Caves | Accompanied by 10 allies 63003 | -5/Upper Caves | Encountered a Warlord checkpoint 63152 | -5/Upper Caves | Learned Factory trap positions 63449 | -5/Upper Caves | Discovered new exit (range 7) 63450 | -5/Upper Caves | Identified exit to Upper Caves 63683 | -5/Upper Caves | Learned Factory garrison access intel 63724 | -5/Upper Caves | Learned Factory non-interactive machine intel 63958 | -5/Upper Caves | Entered another Upper Caves area 63958 | -5/Upper Caves | Accompanied by 10 allies 63958 | -5/Upper Caves | Spotted PY-WW0(f) 63958 | -5/Upper Caves | Spotted 7Q-B8A(f) 63960 | -5/Upper Caves | Allies destroyed PY-WW0(f) 63960 | -5/Upper Caves | Encountered a Master Thief 63964 | -5/Upper Caves | Allies destroyed 7Q-B8A(f) 63971 | -5/Upper Caves | Discovered exit to Factory (range 11) 63972 | -5/Upper Caves | Learned Factory interactive machine intel 64388 | -5/Upper Caves | Discovered new exit (range 16) 64402 | -5/Upper Caves | Identified exit to Warlord 65722 | -5/Upper Caves | Build established: Commander-Assassin 65788 | -5/Upper Caves | Entered Warlord 65788 | -5/Warlord | Accompanied by 8 allies 65878 | -5/Warlord | Found Prototype Device 65878 | -5/Warlord | Identified Minesniffer Drone Bay 65967 | -5/Warlord | Found Prototype Special Weapon 65967 | -5/Warlord | Identified RU-N14's Throwing Claymores v3 66007 | -5/Warlord | Warlord's base attacked by MAIN.C 66009 | -5/Warlord | Met Warlord 66107 | -5/Warlord | Build established: Commander-Scout 66145 | -5/Warlord | Found Prototype Energy Gun 66145 | -5/Warlord | Identified Vortex Shotgun 66149 | -5/Warlord | Found Prototype Launcher 66149 | -5/Warlord | Identified Vortex Catalyst Activator 66272 | -5/Warlord | Warlord forces counterattacked 66273 | -5/Warlord | Destroyed 12 combat bots 66311 | -5/Warlord | Found Prototype Device 66312 | -5/Warlord | Identified Exp. Phase Shifter 66341 | -5/Warlord | Spotted Striker 66379 | -5/Warlord | Lost 5 allies 66420 | -5/Warlord | Spotted Executioner 66420 | -5/Warlord | Spotted Striker 66423 | -5/Warlord | Spotted Striker 66456 | -5/Warlord | Destroyed 8 combat bots 66464 | -5/Warlord | Lost 9 allies 66513 | -5/Warlord | Spotted Striker 66513 | -5/Warlord | Spotted Striker 66539 | -5/Warlord | Destroyed 13 combat bots 66560 | -5/Warlord | Lost 7 allies 66663 | -5/Warlord | Spotted Striker 66664 | -5/Warlord | Spotted Striker 66665 | -5/Warlord | Allies destroyed Striker 66668 | -5/Warlord | Allies destroyed Striker 66682 | -5/Warlord | Warlord base infiltrated, sounded retreat 66800 | -5/Warlord | Discovered new exit (range 14) 66809 | -5/Warlord | Spotted Striker 66842 | -5/Warlord | Identified exit to Proximity Caves 66854 | -5/Warlord | Lost 19 allies 66857 | -5/Warlord | Entered Proximity Caves 66857 | -4/Proximity Caves | Accompanied by 5 allies 66862 | -4/Proximity Caves | Spotted B-86 Titan 66866 | -4/Proximity Caves | Spotter reported a threat 66888 | -4/Proximity Caves | Destroyed B-86 Titan 67304 | -4/Proximity Caves | Discovered exit to Factory (range 13) 68131 | -4/Proximity Caves | Build established: Trapper-Scout 69500 | -4/Proximity Caves | Build established: Scout 70195 | -4/Proximity Caves | Entered Factory 70195 | -4/Factory | Accompanied by 2 allies 70195 | -4/Factory | Evolved 2 slots: Propulsion x1, Utility x1 70196 | -4/Factory | Loaded intel: 121 trap records 70197 | -4/Factory | Loaded intel: 198 non-interactive machine locations 70198 | -4/Factory | Loaded intel: 50 interactive machine locations 70199 | -4/Factory | Loaded intel: 3 garrison access locations 70252 | -4/Factory | Repaired Corrupted Impulse Thruster Array 70295 | -4/Factory | Repaired Cld. Cesium-ion Thruster? 70456 | -4/Factory | Fabricated Y-64 Sentinel (x2) 70639 | -4/Factory | Spotted B-86 Titan 70700 | -4/Factory | Discovered new exit (range 5) 70701 | -4/Factory | Identified exit to Upper Caves 70765 | -4/Factory | Build established: Hacker-Sprinter 71264 | -4/Factory | Fabricated Exp. Signal Interpreter (x1) 71695 | -4/Factory | Discovered new exit (range 7) 72135 | -4/Factory | Fabricated Exp. Hacking Suite (x1) 72197 | -4/Factory | Discovered new exit (range 13) 72205 | -4/Factory | Identified exit to Research 72334 | -4/Factory | Discovered exit to Research (range 9) 72388 | -4/Factory | Repaired Broken Diametric Drive 72586 | -4/Factory | Central database locked down 72945 | -4/Factory | First assault squad dispatched 73089 | -4/Factory | Manually triggered Chute Trap 73089 | -4/Factory | Sucked down chute 73089 | -4/Factory | Entered Waste 73090 | -4/Waste | Joined by Warlord forces that had cleared the area 73283 | -4/Waste | Discovered new exit (range 12) 73536 | -4/Waste | Identified exit to Factory 73634 | -4/Waste | Entered Factory 73634 | -4/Factory | Accompanied by 20 allies 73695 | -4/Factory | Discovered exit to Research (range 9) 73701 | -4/Factory | Lost 9 allies 73884 | -4/Factory | First assault squad dispatched 73917 | -4/Factory | Fabricated Exp. Terrain Scan Processor? 73944 | -4/Factory | High security lockdown imminent 74018 | -4/Factory | Destroyed 9 combat bots 74024 | -4/Factory | High security lockdown engaged 74104 | -4/Factory | Entered Upper Caves 74106 | -4/Upper Caves | Learned Research stockpile data 74313 | -4/Upper Caves | Learned Research non-interactive machine intel 74350 | -4/Upper Caves | Discovered new exit (range 14) 74361 | -4/Upper Caves | Identified exit to Upper Caves 75645 | -4/Upper Caves | Found Alien Artifact 75807 | -4/Upper Caves | Entered another Upper Caves area 75807 | -4/Upper Caves | Accompanied by 1 ally 75807 | -4/Upper Caves | Discovered exit to Research (range 7) 76018 | -4/Upper Caves | Learned 4 Research zone layouts 76105 | -4/Upper Caves | Spotted B-86 Titan 76415 | -4/Upper Caves | Encountered a Warlord checkpoint 76502 | -4/Upper Caves | Spotted HC-4N0(f) 76505 | -4/Upper Caves | Encountered a Master Thief 76523 | -4/Upper Caves | Spotted 1J-AZL(f) 76524 | -4/Upper Caves | Encountered a Master Thief 76617 | -4/Upper Caves | Lost 3 allies 76740 | -4/Upper Caves | Destroyed 1J-AZL(f) 77256 | -4/Upper Caves | Discovered new exit (range 8) 77258 | -4/Upper Caves | Identified exit to Zhirov 77321 | -4/Upper Caves | Destroyed B-86 Titan 77401 | -4/Upper Caves | Entered Zhirov 77401 | -4/Zhirov | Discovered new exit (range 3) 77402 | -4/Zhirov | Identified exit to Proximity Caves 77407 | -4/Zhirov | Met Zhirov 77415 | -4/Zhirov | Learned location of Quarantine (-3) 77415 | -4/Zhirov | Learned location of Testing (-2) 77415 | -4/Zhirov | Learned location of Command (-1) 77418 | -4/Zhirov | Zhirov requested help retrieving the SGEMP Prototype 77423 | -4/Zhirov | Found Alien Artifact 77423 | -4/Zhirov | Identified Integrated Reactor 77423 | -4/Zhirov | Installed Integrated Reactor, increased core energy generation (+10) 77507 | -4/Zhirov | Identified Dimensional Node Initializer 77507 | -4/Zhirov | Initialized slip node 77526 | -4/Zhirov | Found Alien Artifact 77614 | -4/Zhirov | Cloak Generator disabled 77614 | -4/Zhirov | Attacked by Zhirov 77624 | -4/Zhirov | Enhanced Grunts warped into view 77632 | -4/Zhirov | Destroyed Zhirov 77635 | -4/Zhirov | Found Quantum Router 77637 | -4/Zhirov | Found Deep Network Scanner 77638 | -4/Zhirov | Identified Transdimensional Reconstructor 77638 | -4/Zhirov | Warped through subspace to slip node 77643 | -4/Zhirov | Zhirov detonated his lab 77651 | -4/Zhirov | Found Zhirov Special 77680 | -4/Zhirov | Found Deep Network Scanner 77763 | -4/Zhirov | Entered Proximity Caves 77908 | -3/Proximity Caves | Discovered exit to Research (range 4) 78714 | -3/Proximity Caves | Learned Armory trap positions 78714 | -3/Proximity Caves | Learned Factory trap positions 78714 | -3/Proximity Caves | Learned location of 1 exit from Factory 79600 | -3/Proximity Caves | Entered Research 79600 | -3/Research | Spotted B-86 Titan 79600 | -3/Research | Evolved 2 slots: Propulsion x1, Utility x1 79604 | -3/Research | Loaded intel: 73 non-interactive machine locations 79799 | -3/Research | Repaired Q-thruster 79891 | -3/Research | Spotted B-86 Titan 79982 | -3/Research | Build established: Wizard-Sprinter 80067 | -3/Research | Lost 11 parts (2p6n2u1w) 80152 | -3/Research | Spotted B-86 Titan 80472 | -3/Research | Identified exit to Armory 80472 | -3/Research | Identified exit to Quarantine 80713 | -3/Research | Found Prototype Device 80716 | -3/Research | Identified Exp. Thermal Defense Suite 80950 | -3/Research | Fabricated Exp. Terrain Scanner (x1) 81088 | -3/Research | Fabricated Exp. Terrain Scan Processor (x1) 82144 | -3/Research | Discovered new exit (range 15) 82196 | -3/Research | Found Prototype Device 82247 | -3/Research | Identified Adv. Kinecellerator 82285 | -3/Research | Fabricated Stasis Canceller (x2) 82622 | -3/Research | Entered Quarantine 82714 | -3/Quarantine | Discovered new exit (range 27) 82718 | -3/Quarantine | Found Alien Slashing Weapon 82718 | -3/Quarantine | Identified Sigix Broadsword 83055 | -3/Quarantine | Found Alien Artifact 83063 | -3/Quarantine | Identified Core Reset Matrix 83219 | -3/Quarantine | Repaired Q-thruster 83255 | -3/Quarantine | Repaired Exp. Sensor Array? 83293 | -3/Quarantine | Repaired Exp. Propulsion Shielding 83351 | -3/Quarantine | Found Dimensional Node Initializer 83353 | -3/Quarantine | Initialized slip node 83356 | -3/Quarantine | Found Alien Artifact 83356 | -3/Quarantine | Identified Hpw. Transdimensional Reconstructor 83356 | -3/Quarantine | Warped through subspace to slip node 83439 | -3/Quarantine | Found Alien Impact Weapon 83439 | -3/Quarantine | Identified Core Stripper 83462 | -3/Quarantine | Found Alien Launcher 83473 | -3/Quarantine | Found Alien Energy Cannon 83473 | -3/Quarantine | Identified Core Cannon 83498 | -3/Quarantine | Found Alien Reactor 83498 | -3/Quarantine | Identified Matter Drive 83526 | -3/Quarantine | Met incapacitated Sigix Warrior 83526 | -3/Quarantine | Lockdown squad dispatched 83593 | -3/Quarantine | Found Alien Artifact 83689 | -3/Quarantine | Identified Subatomic Replicator 83713 | -3/Quarantine | Identified exit to Garrison 83890 | -3/Quarantine | Entered Garrison 83890 | -3/Garrison | Accompanied by 1 ally 83916 | -3/Garrison | Phase Generator disabled 84087 | -3/Garrison | Lost 3 allies 84087 | -3/Garrison | Garrison Relay disabled 84134 | -3/Garrison | Triggered checkpoint 84144 | -3/Garrison | Triggered checkpoint 84159 | -3/Garrison | Triggered checkpoint 84197 | -3/Garrison | Destroyed 16 combat bots 84322 | -3/Garrison | Destroyed B-86 Titan 84356 | -3/Garrison | Discovered new exit (range 12) 84541 | -3/Garrison | Discovered new exit (range 15) 84545 | -3/Garrison | Learned Research security intel 84545 | -3/Garrison | Discovered new exit (range 47) 84545 | -3/Garrison | Discovered new exit (range 76) 84545 | -3/Garrison | Discovered new exit (range 13) 84551 | -3/Garrison | Garrison Relay disabled 84602 | -3/Garrison | Triggered checkpoint 84695 | -3/Garrison | Identified exit to Research 84713 | -3/Garrison | Garrison Relay disabled 85093 | -3/Garrison | Attempted to access garrison exit controls, blocked by remote lockdown 85135 | -3/Garrison | Entered Research 85135 | -2/Research | Warlord forces began assault on 0b10 85135 | -2/Research | Evolved 2 slots: Propulsion x1, Utility x1 85160 | -2/Research | Distinguished unit "The Professionals" dispatched to help 85160 | -2/Research | Distinguished unit "Magnificent Bastards" dispatched to help 85164 | -2/Research | Identified exit to Testing 85164 | -2/Research | Identified exit to Access 85245 | -2/Research | Research machine network offline 85413 | -2/Research | Met up with Warlord 85526 | -2/Research | Lost 4 allies 85570 | -2/Research | Spotted Executioner 85588 | -2/Research | Spotted Striker 85605 | -2/Research | Found Prototype Launcher 85610 | -2/Research | Identified Enh. Gamma Bomb Array 85645 | -2/Research | Spotted Striker 85704 | -2/Research | Lost 6 allies 85737 | -2/Research | Spotted Executioner 85737 | -2/Research | Spotted Striker 85737 | -2/Research | Spotted Executioner 85741 | -2/Research | Spotted Striker 85769 | -2/Research | Lost 5 allies 85771 | -2/Research | Met DD-05H 85838 | -2/Research | Build established: Wizard-Scout 85911 | -2/Research | Borebot progress halted 85937 | -2/Research | Identified Sigix Terminator 85967 | -2/Research | Entered Testing 86016 | -2/Testing | Repaired Adv. Gravity Neutralizer 86094 | -2/Testing | Found Prototype Launcher 86095 | -2/Testing | Identified Ragnarok Missile Launcher 86108 | -2/Testing | Spotted Striker 86116 | -2/Testing | Spotted PL-9C37839ZM2 86125 | -2/Testing | Found Prototype Energy Cannon 86125 | -2/Testing | Identified Potential Cannon 86208 | -2/Testing | Spotted Striker 86254 | -2/Testing | Found Prototype Device 86254 | -2/Testing | Identified AEGIS Remote Shield 86271 | -2/Testing | Discovered exit to Access (range 28) 86277 | -2/Testing | Rewired 8S-P2U(L) 86280 | -2/Testing | Rewired P3-INV(L) 86320 | -2/Testing | Central database locked down 86354 | -2/Testing | Found Prototype Protection 86355 | -2/Testing | Identified Lgt. Regenerative Plating 86357 | -2/Testing | Found Prototype Protection 86358 | -2/Testing | Identified Med. Regenerative Plating 86360 | -2/Testing | Found Prototype Protection 86360 | -2/Testing | Identified SHELL Armor 86526 | -2/Testing | Found Prototype Ballistic Gun 86526 | -2/Testing | Identified Hyp. Multirail 86747 | -2/Testing | Spotted Fortress 86762 | -2/Testing | Discovered new exit (range 6) 86763 | -2/Testing | Identified exit to Section 7 87019 | -2/Testing | Entered Section 7 87032 | -2/Section 7 | Discovered exit to Access (range 27) 87038 | -2/Section 7 | Found Alien Artifact 87038 | -2/Section 7 | Identified Integrated Dissipator 87038 | -2/Section 7 | Installed Integrated Dissipator, increased core heat dissipation (+20) 87099 | -2/Section 7 | Build established: Wizard-Sprinter 87117 | -2/Section 7 | Found Integrated Reactor 87121 | -2/Section 7 | Installed Integrated Reactor, increased core energy generation (+10) 87251 | -2/Section 7 | Found Alien Artifact 87251 | -2/Section 7 | Identified Integrated Mediator 87251 | -2/Section 7 | Installed Integrated Mediator, increased core attachment efficiency 87463 | -2/Section 7 | Found Alien Artifact 87538 | -2/Section 7 | Identified Navigation Efficiency Matrix 87552 | -2/Section 7 | Found Integrated Reactor 87558 | -2/Section 7 | Installed Integrated Reactor, increased core energy generation (+10) 87585 | -2/Section 7 | Identified exit to Garrison 87613 | -2/Section 7 | Found Alien Artifact 87694 | -2/Section 7 | Spotted Alpha 7 87694 | -2/Section 7 | Spotted B-90 Cyclops 87753 | -2/Section 7 | Identified Microwarp Drive 87806 | -2/Section 7 | Spotted B-99 Colossus 87828 | -2/Section 7 | Found Alien Artifact 87831 | -2/Section 7 | Found Transdimensional Reconstructor 87937 | -2/Section 7 | Found Integrated Dissipator 87938 | -2/Section 7 | Found Integrated Dissipator 87939 | -2/Section 7 | Found Integrated Dissipator 87959 | -2/Section 7 | Installed Integrated Dissipator, increased core heat dissipation (+20) 87960 | -2/Section 7 | Installed Integrated Dissipator, increased core heat dissipation (+20) 87961 | -2/Section 7 | Installed Integrated Dissipator, increased core heat dissipation (+20) 87963 | -2/Section 7 | Found Alien Artifact 87975 | -2/Section 7 | Identified Terrabomb 87975 | -2/Section 7 | Used Terrabomb 88004 | -2/Section 7 | Identified LRC Storage 88016 | -2/Section 7 | Used Subatomic Replicator to replicate LRC Storage 88018 | -2/Section 7 | Installed LRC Storage, increased inventory capacity (+2) 88021 | -2/Section 7 | Installed LRC Storage, increased inventory capacity (+2) 88149 | -2/Section 7 | Found Exp. Core Analyzer 88151 | -2/Section 7 | Entered Garrison 88151 | -2/Garrison | Accompanied by 1 ally 88179 | -2/Garrison | Triggered checkpoint 88200 | -2/Garrison | Spotted B-75 Beast 88246 | -2/Garrison | Triggered checkpoint 88283 | -2/Garrison | Lost 5 allies 88427 | -2/Garrison | Destroyed B-75 Beast 88456 | -2/Garrison | Destroyed B-75 Beast 88490 | -2/Garrison | Rewired B-86 Titan 88495 | -2/Garrison | Rewired B-75 Beast 88521 | -2/Garrison | Triggered checkpoint 88546 | -2/Garrison | Garrison Relay disabled 88689 | -2/Garrison | Triggered checkpoint 88710 | -2/Garrison | Triggered checkpoint 88728 | -2/Garrison | Spotted B-90 Cyclops 88775 | -2/Garrison | Destroyed B-90 Cyclops 88881 | -2/Garrison | Discovered exit to Access (range 12) 88882 | -2/Garrison | Discovered exit to Access (range 16) 88882 | -2/Garrison | Discovered exit to Access (range 50) 88882 | -2/Garrison | Discovered exit to Access (range 57) 88901 | -2/Garrison | Triggered checkpoint 88916 | -2/Garrison | Phase Generator disabled 88928 | -2/Garrison | Rewired Executioner 88930 | -2/Garrison | Rewired Executioner 88971 | -2/Garrison | Triggered checkpoint 89084 | -2/Garrison | Garrison Relay disabled 89370 | -2/Garrison | Entered Access 89370 | -1/Access | Accompanied by 2 allies 89370 | -1/Access | Evolved 2 slots: Utility x1, Weapon x1 89637 | -1/Access | Fabricated Femtoactuators (x1) 89665 | -1/Access | Discovered new exit (range 28) 89677 | -1/Access | Lost 4 allies 89693 | -1/Access | Repaired Exp. Propulsion Shielding 89777 | -1/Access | Repaired Imp. Utility Shielding 90059 | -1/Access | Build established: Wizard-Scout 90549 | -1/Access | Identified exit to Command 90579 | -1/Access | Entered Command 90579 | -1/Command | Accompanied by 1 ally 90732 | -1/Command | Spotted B-99 Colossus 90756 | -1/Command | Spotted B-99 Colossus 90897 | -1/Command | Build established: Wizard-Sprinter 91014 | -1/Command | Disengaged cave seal 91019 | -1/Command | Phase Generator disabled 91020 | -1/Command | Welcomed Warlord to Command 91062 | -1/Command | Disengaged cave seal 91062 | -1/Command | Derelicts emerged from the dark tunnel 91127 | -1/Command | First assault squad dispatched 91154 | -1/Command | Lost 4 allies 91204 | -1/Command | Found Prototype Ballistic Gun 91205 | -1/Command | Identified Multirail 91222 | -1/Command | Repaired Exp. Propulsion Shielding 91255 | -1/Command | Spotted Combat Programmer 91256 | -1/Command | Spotted Combat Programmer 91271 | -1/Command | Spotted M Guard 91271 | -1/Command | Spotted M Guard 91285 | -1/Command | All MAIN.C guards destroyed 91302 | -1/Command | Warlord commented on Warlord statues 91310 | -1/Command | Lost 7 allies 91372 | -1/Command | Met MAIN.C 91374 | -1/Command | Warlord shut down involuntarily 91386 | -1/Command | 0b10 Conduit disabled 91387 | -1/Command | MAIN.C activated Command garrisons 91406 | -1/Command | Discovered new exit (range 50) 91406 | -1/Command | Discovered new exit (range 88) 91406 | -1/Command | Extracted map data and part IDs from MAIN.C's data core 91431 | -1/Command | Lost 4 allies 91517 | -1/Command | Destroyed 32 combat bots 91626 | -1/Command | Lost 10 allies 91709 | -1/Command | Build established: Trapper-Sprinter 92009 | -1/Command | Identified exit to Surface 92261 | -1/Command | Build established: Trapper-Scout 92423 | -1/Command | Found Z-bomb Delivery System 92426 | -1/Command | Found Exp. Targeting Computer 92428 | -1/Command | Found Exp. System Purifier 92579 | -1/Command | Build established: Scavenger-Scout 92919 | -1/Command | Found Exp. Core Analyzer 92990 | -1/Command | Found Corrupted Exp. Melee Analysis Suite 93313 | -1/Command | Build established: Machinist-Scout 93676 | -1/Command | Attacked by Warlord forces 93676 | -1/Command | Spotted CY-3H3(L) 93676 | -1/Command | Spotted DZ-86V(L) 93707 | -1/Command | Build established: Sprinter 93746 | -1/Command | Destroyed DZ-86V(L) 93759 | -1/Command | Destroyed CY-3H3(L) 93887 | -1/Command | Found Multirail 94399 | -1/Command | Build established: Scavenger-Ninja 94714 | -1/Command | Warped through subspace to slip node 94714 | -1/Command | Discovered new exit (range 5) 94766 | -1/Command | Entered Access_0 94767 | -1/Access_0 | Met Architect 94774 | -1/Access_0 | Build established: Scavenger-Scout 94774 | -1/Access_0 | Subspace Access Node disabled 94785 | -1/Access_0 | Subspace Access Node disabled 94800 | -1/Access_0 | A6 warped into view 94867 | -1/Access_0 | Subspace Access Node disabled 94868 | -1/Access_0 | A5 warped into view 94888 | -1/Access_0 | Subspace Access Node disabled 94906 | -1/Access_0 | Started Test 138-B, establishing a local singularity 94925 | -1/Access_0 | Singularity Gate disabled 94927 | -1/Access_0 | Singularity Gate disabled 94946 | -1/Access_0 | A4 warped into view 94972 | -1/Access_0 | Fired Sigix Terminator 94972 | -1/Access_0 | Destroyed A2 94972 | -1/Access_0 | Destroyed A6 94983 | -1/Access_0 | Extracted Singularity Gate Test 138-C access codes from A2's data core 94993 | -1/Access_0 | Destroyed 8 combat bots 94996 | -1/Access_0 | Destroyed Architect 94998 | -1/Access_0 | Extracted unknown sensor trigger ID from Architect's data core 94998 | -1/Access_0 | Found Hpw. Transdimensional Reconstructor 95030 | -1/Access_0 | Destroyed A4 95059 | -1/Access_0 | Lost 3 parts (1p1n1u) 95097 | -1/Access_0 | Found Exp. Thermal Shield 95105 | -1/Access_0 | Found Sigix Broadsword 95250 | -1/Access_0 | Build established: Scavenger-Sprinter 95311 | -1/Access_0 | Found Exp. Phase Shifter 95540 | -1/Access_0 | A3 warped into view 95580 | -1/Access_0 | Destroyed A3 95637 | -1/Access_0 | Found Prototype Ballistic Gun 95637 | -1/Access_0 | Identified A3's Sniper Rifle 95653 | -1/Access_0 | Destroyed 7 combat bots 96005 | -1/Access_0 | Found Core Expander 96420 | -1/Access_0 | Found Prototype Device 96420 | -1/Access_0 | Identified Desublimator 96516 | -1/Access_0 | Found Exp. Phase Shifter 97055 | -1/Access_0 | Found Exp. Thermal Shield 97067 | -1/Access_0 | Found Deep Network Scanner 97069 | -1/Access_0 | Found Quantum Router 97106 | -1/Access_0 | Found Sigix Corpse 97220 | -1/Access_0 | Found Desublimator 97243 | -1/Access_0 | Found Desublimator 97280 | -1/Access_0 | Warped through subspace to slip node 97280 | -1/Access_0 | Discovered exit to Surface (range 8) 97283 | -1/Access_0 | Found Hpw. Transdimensional Reconstructor 99999 | *** | Establishing 0b11! Last Messages --------------- 97057_ Dropped Exp. Thermal Shield. 97063_ Acquired 5 matter. 97067_ Acquired Deep Network Scanner. 97069_ Acquired Quantum Router. 97070_ Dropped Lgt. Quantum Reactor. 97070_ Dropped Antimatter Reactor. 97104_ Analysis Chamber breached. 97106_ Acquired Sigix Corpse. 97107_ Machine disabled. 97220_ Acquired Desublimator. 97242_ Acquired 2 matter. 97242_ Acquired 8 matter. 97242_ Dropped Desublimator. 97243_ Acquired Desublimator. 97280_ Warped through subspace, drawn to slip node. 97280_ EXIT=FOUND: SURFACE 97283_ Acquired Hpw. Transdimensional Reconstructor. [Achievement: Victory By Combat] [Achievement: Death Machine] [Achievement: True Cogmind] Map ----- +----------------------------------------------------+ | | | | | | | | | | | | | | | | | | | | | | | | | | | | | | | | | ?##########################################?##?### | | #########################?######################## | | #################################################? | | ##################??###?###################?###### | | #########################################?###?#### | | ##############?############?###################### | | ###?##########################?######?############ | | ######################### ########?#?############# | | #############?########## #####################?# | | #######?###########?#### @ ####################### | | #############?########## ####################### | | #####?########?######## ####################### | | ###############?####### ################?####### | | ######################## #################?##### | | ##############?######## #########?############# | | ####?#######?########## ######################## | | ###############?####### < #########?############# | | ####################### ####################??## | | ########?############### ###?#################### | | #############?#################################### | | #?#########################?####?##############?## | | ?#################################?##########?##?# | | #####?########################?################### | | #####?####################?###?###############?### | | ######?#####################?#########?#?########? | | ##############################?###?#########?##### | | #?#################?###########?################## | | #?####?######?######?############################# | | #####################?##?#####?#######?########### | | ##########?######################?#?###?########## | | ##################################?##############? | | #?########################?##?#?#######?#########? | | #########?#############?########################?# | | #####?###?####?####?####?#########?############?#? | +----------------------------------------------------+ Best States ------------- Heat Dissipation 132 Energy Generation 74 Energy Capacity 300 Matter Stores 300 Matter Capacity 300 Sight Range 23 Robot Scan Range 20 Terrain Scan Range 30 Terrain Scan Density 1010 ECM Strength 2 Jamming Range 16 Cloak Strength 5 Power Amplification 40 Additional Mass Support 25 Armor Coverage 1050 Resistance: KI 30 Resistance: TH 30 Resistance: EM 25 Power Shielding 66 Propulsion Shielding 90 Utility Shielding 66 Weapon Shielding 90 Melee Speed Boost 50 Phase Shifting 20 Evasion (%) 100 Targeting Accuracy 8 Melee Accuracy 8 Target Analysis 8 Core Analysis 8 Recoil Reduction 5 Matter Filtering 50 Force Boost 30 Offensive Hacking 66 Defensive Hacking 39 Authchip Count 3 Trap Extractor Capacity 8 Item Schematics ----------------- Exp. Sensor Array | -8/Materials | Scanalyzed Adv. Visual Processing Unit | -8/Materials | Scanalyzed Imp. Signal Interpreter | -8/Materials | Scanalyzed Cesium-ion Thruster | -8/Materials | Scanalyzed Imp. VTOL Module | -8/Materials | Scanalyzed Prc. Beam Rifle | -8/Materials | Scanalyzed Hrd. Medium Armor Plating | -8/Materials | Scanalyzed Hyp. Coil Gun | -8/Materials | Scanalyzed Adv. Terrain Scanner | -8/Recycling | Hacked Impulse Thruster | -6/Factory | Hacked Adv. Phase Shifter | -6/Factory | Scanalyzed Lrg. Storage Unit | -6/Factory | Scanalyzed Adv. Reaction Control System | -5/Factory | Hacked Exp. Hacking Suite | -5/Factory | Scanalyzed Stasis Canceller | -5/Factory | Scanalyzed Adv. Terrain Scan Processor | -5/Factory | Extracted Enh. Gauss Cannon | -5/Factory | Extracted Hvy. Flak Cannon | -5/Factory | Extracted Power Amplifier | -5/Factory | Extracted Exp. Signal Interpreter | -4/Factory | Hacked Exp. Phase Shifter | -4/Factory | Scanalyzed Smartbomb Launcher | -4/Factory | Scanalyzed Cld. Cesium-ion Thruster | -4/Factory | Scanalyzed Q-thruster | -4/Factory | Hacked Impulse Thruster Array | -4/Factory | Hacked Diametric Drive | -4/Factory | Scanalyzed Adv. Transmission Jammer | -4/Factory | Scanalyzed Exp. Terrain Scan Processor | -4/Factory | Hacked Imp. Arc Projector | -4/Factory | Scanalyzed HERF Cannon | -4/Factory | Scanalyzed Structural Scanner | -4/Factory | Scanalyzed Adv. Cloaking Device | -4/Factory | Hacked Railgun | -4/Factory | Hacked Imp. Arc Thrower | -4/Zhirov | Free Exp. Optical Array | -4/Zhirov | Free Exp. Heat Sink | -4/Zhirov | Free Assault Drone Bay | -4/Zhirov | Free Biometal Heavy Treads | -3/Research | Hacked Enh. Quantum Rifle | -3/Research | Hacked Nuclear Pulse Array | -3/Research | Scanalyzed Hvy. Flail | -3/Research | Scanalyzed Hcp. Storage Unit | -3/Research | Scanalyzed Exp. Thermal Defense Suite | -3/Research | Scanalyzed Exp. Terrain Scanner | -3/Research | Hacked Adv. Force Booster | -3/Research | Hacked Antimissile System | -3/Research | Scanalyzed Exp. Propulsion Shielding | -3/Research | Scanalyzed Adv. ECM Suite | -3/Research | Scanalyzed Exp. Utility Shielding | -3/Research | Hacked Exp. Weapon Shielding | -3/Research | Hacked Cld. Field Propulsion Drive | -3/Research | Hacked Cld. Impulse Thruster | -3/Quarantine | Hacked Adv. Component Analysis Suite | -3/Quarantine | Scanalyzed Exp. Transmission Jammer | -3/Quarantine | Hacked Imp. Diametric Drive | -3/Quarantine | Scanalyzed Femtoactuators | -2/Testing | Hacked Exp. Coolant Injector | -2/Testing | Scanalyzed Adv. Remote Datajack | -2/Testing | Scanalyzed Cld. Q-thruster | -2/Section 7 | Hacked Robot Schematics ------------------ H-55 Commando | -8/Recycling | Hacked P-70 Sage | -5/Factory | Hacked C-35 Carver | -5/Factory | Hacked Fabricated ------------ Imp. Heavy Treads | x1 | -6/Factory | Preloaded Exp. Sensor Array | x1 | -5/Factory Exp. Hacking Suite | x1 | -5/Factory Exp. Hacking Suite | x1 | -5/Factory P-70 Sage | x2 | -5/Factory | Authchip P-70 Sage | x2 | -5/Factory | Authchip P-70 Sage | x2 | -5/Factory | Authchip P-70 Sage | x2 | -5/Factory | Authchip P-70 Sage | x2 | -5/Factory | Authchip Y-64 Sentinel | x2 | -4/Factory | Preloaded Exp. Signal Interpreter | x1 | -4/Factory Exp. Hacking Suite | x1 | -4/Factory Exp. Terrain Scan Processor | x1 | -4/Factory Exp. Terrain Scanner | x1 | -3/Research Exp. Terrain Scan Processor | x1 | -3/Research Stasis Canceller | x2 | -3/Research Femtoactuators | x1 | -1/Access Alien Tech Used ----------------- Core Expander Integrated Reactor Dimensional Node Initializer Transdimensional Reconstructor Sigix Broadsword High-powered Transdimensional Reconstructor Core Stripper Core Cannon Matter Drive Subatomic Replicator Sigix Terminator Integrated Dissipator Integrated Mediator Microwarp Drive Terrabomb LRC Storage Achievements -------------- Death Machine True Cogmind Victory By Combat Challenges ------------ None Game ------ Seed GreaterGarrisonLooping Manual? 1 Play Time 40:03:03 Cumulative 683.9 hours Start 2024.09.08 @ 18:34:43 End 2024.10.13 @ 11:11:00 Sessions 131 Manual Loads 0 Difficulty Rogue Special Mode None Game No. 129 Rogue 105 Adventurer 24 Explorer 0 Win Type 1 Total 25 Types 15/2/3/2/1/0/1/1/0 Lore% 65 Gallery% 90 Achievement% 85 Wizard Run 0 Options --------- Layout 0 ASCII 0 Keyboard 0 Movement Mouse Keybinds 0 Fullscreen 1 Font 36/Smallcaps Map View 76x50 Zoom Use 0% Tactical HUD 1 Map Filters SHIFT_HUE(340) Filters NONE Steam 1 RUN: d0485f0c-1fc7-49d8-904e-5e3b3f11e502